{"text_format":"1","workbook":"xlsx","n_sheets":11,"sheets":["Skema 1","Skema 2","Skema 3","Skema 4","Skema 5","Skema 6","Skema 7","Rapport","Rapport SGH","Afstemning af ikke fordelte","Afstemning øvrige region"],"not_rendered":{"charts":0,"images":0,"macros":1,"external_links":0,"defined_names":20,"comments":2,"pivot_tables":0},"unopened":[],"bounds":{"document_bytes":16777216,"sheet_cells":100000,"rows_first":2000,"rows_last":500,"rows_between":2000,"halvings":0,"cell_chars":16384,"cell_head_chars":4096},"cells_cut":0,"cells_raw":0,"read":"whole","date_system":"1900"}

{"sheet":"Skema 1","index":0,"n_rows":85,"n_cols":9,"rows_kept":85,"cut":false,"hidden":false,"merged":[[1,1,2,8]]}
["Region Syddanmark, somatiske sygehuse."]
[null,"Skema 1: Udgifter og indtægter på sygehusene/enhederne, eksklusiv omkostningssted 0001, Fælleskonto. (1.000 kr.)"]
[]
[]
["Sygehus",null,2023,2022,2021,2020,"Δ2022-2023","% afvigelse","Begrundelse"]
["Odense Universitetshospital/Svendborg"]
["Odense Universitetshospital/Svendborg","Hovedart 1: Lønninger",5603645.0329999998,5500868.443,5337144.79,5056449,{"$f":"IF(ISERROR(C7- D7)=TRUE,\"\",C7 - D7)","v":102776.58999999985},{"$f":"IF(ISERROR((((C7- D7)/D7)*100)=TRUE),\"\",IF((((C7- D7)/D7)*100)<-7,FIXED(((C7- D7)/D7)*100, 1,TRUE) &\"%\" & \"▼\",IF((((C7- D7)/D7)*100)>7,FIXED(((C7- D7)/D7)*100, 1,TRUE) &\"%\" &\"▲\",FIXED(((C7- D7)/D7)*100, 1,TRUE)&\"%\")))","v":"1,9%"}]
["Odense Universitetshospital/Svendborg","Hovedart 2: Varekøb",2353019.8670000001,2373700.63,2327554.6740000001,2396643,-20680.762999999803,"-0,9%"]
["Odense Universitetshospital/Svendborg","Hovedart 4: Tjenesteydelser m.v. ",664643.44999999995,516458.98,285598.51,412204,148184.46999999997,"28,7%▲","Stort fald i Covid-19 kompensation fra regionshuset, der i tidligere år har været krediteret art 4-0. samt stigning i ekstern forskning, der nulstilles på art 4.0"]
["Odense Universitetshospital/Svendborg","Hovedart 5: Tilskud og overførsler",null,0,null,0,0,""]
["Odense Universitetshospital/Svendborg","Hovedart 6: Finansudgifter",null,0,null,0,0,""]
["Odense Universitetshospital/Svendborg","Hovedart 7: Indtægter",-527838.59,-481197.57699999999,-478386.90500000003,-476581,-46641.012999999977,"9,7%▲","Øget indtægter på blodplasma og forskning"]
["Odense Universitetshospital/Svendborg","Hovedart 8: Finansindtægter",null,-548.37300000000005,-473.50099999999998,-1805,548.37300000000005,"-100,0%▼","Ny kontering løntilskud fra kommunerne. Er ændret fra art 8.5 til art 7.7"]
["Odense Universitetshospital/Svendborg","Hovedart 9: Interne udgifter og indtægter",null,null,null,null,0,""]
["Odense Universitetshospital/Svendborg","I alt",{"$f":"SUMIFS((C7:C14),(A7:A14),A15)","v":8093469.7599999998},{"$f":"SUMIFS((D7:D14),(A7:A14),A15)","v":7909282.1030000001},{"$f":"SUMIFS((E7:E14),(A7:A14),A15)","v":7471437.567999999},{"$f":"SUMIFS((F7:F14),(A7:A14),A15)","v":7386910},184187.65699999966,"2,3%"]
["Sygehus Sønderjylland",null,null,null,null,null,0,""]
["Sygehus Sønderjylland","Hovedart 1: Lønninger",1536635,1585195,1558182,1458321,-48560,"-3,1%"]
["Sygehus Sønderjylland","Hovedart 2: Varekøb",477110,495429,471865,489449,-18319,"-3,7%"]
["Sygehus Sønderjylland","Hovedart 4: Tjenesteydelser m.v. ",306719,139174,83786,155064,167545,"120,4%▲","Stort fald i Covid-19 kompensation fra regionshuset, der i tidligere år har været krediteret art 4-0"]
["Sygehus Sønderjylland","Hovedart 5: Tilskud og overførsler",0,0,null,null,0,""]
["Sygehus Sønderjylland","Hovedart 6: Finansudgifter",0,null,null,null,0,""]
["Sygehus Sønderjylland","Hovedart 7: Indtægter",-49071,-49146,-33168,-34419,75,"-0,2%"]
["Sygehus Sønderjylland","Hovedart 8: Finansindtægter",null,null,null,null,0,""]
["Sygehus Sønderjylland","Hovedart 9: Interne udgifter og indtægter",null,null,null,null,0,""]
["Sygehus Sønderjylland","I alt",{"$f":"SUMIFS((C7:C24),(A7:A24),A25)","v":2271393},{"$f":"SUMIFS((D7:D24),(A7:A24),A25)","v":2170652},{"$f":"SUMIFS((E7:E24),(A7:A24),A25)","v":2080665},{"$f":"SUMIFS((F7:F24),(A7:A24),A25)","v":2068415},100741,"4,6%"]
["Esbjerg og Grindsted Sygehus",null,null,null,null,null,0,""]
["Esbjerg og Grindsted Sygehus","Hovedart 1: Lønninger",1547927,1518098,1461156,1370162,29829,"2,0%"]
["Esbjerg og Grindsted Sygehus","Hovedart 2: Varekøb",475880,492381,474506,491682,-16501,"-3,4%"]
["Esbjerg og Grindsted Sygehus","Hovedart 4: Tjenesteydelser m.v. ",190385,129285,75665,149330,61100,"47,3%▲","Lavere Covid refusion - tilbage til \"normalniveau\" fra før 2020"]
["Esbjerg og Grindsted Sygehus","Hovedart 5: Tilskud og overførsler",0,1,null,null,-1,"-100,0%▼"]
["Esbjerg og Grindsted Sygehus","Hovedart 6: Finansudgifter",null,null,null,null,0,""]
["Esbjerg og Grindsted Sygehus","Hovedart 7: Indtægter",-46661,-39237,-31971,-27819,-7424,"18,9%▲","Flere indtægter fra SDU og projekter"]
["Esbjerg og Grindsted Sygehus","Hovedart 8: Finansindtægter",null,-7,-767,-331,7,"-100,0%▼"]
["Esbjerg og Grindsted Sygehus","Hovedart 9: Interne udgifter og indtægter",null,null,null,null,0,""]
["Esbjerg og Grindsted Sygehus","I alt",{"$f":"SUMIFS((C7:C34),(A7:A34),A35)","v":2167531},{"$f":"SUMIFS((D7:D34),(A7:A34),A35)","v":2100521},{"$f":"SUMIFS((E7:E34),(A7:A34),A35)","v":1978589},{"$f":"SUMIFS((F7:F34),(A7:A34),A35)","v":1983024},67010,"3,2%"]
["Kolding og Middelfart Sygehuse",null,null,null,null,null,0,""]
["Kolding og Middelfart Sygehuse","Hovedart 1: Lønninger",1297145.1200000001,1360169.9744226269,1285871.3666768312,1191209.9599734501,-63024.854422626784,"-4,6%"]
["Kolding og Middelfart Sygehuse","Hovedart 2: Varekøb",348154.34899999999,357842.75226347009,322523.36185748904,330167.72889517999,-9688.4032634700998,"-2,7%"]
["Kolding og Middelfart Sygehuse","Hovedart 4: Tjenesteydelser m.v. ",137142.21400000001,50992.631960545557,33646.248267195122,57217.695065668602,{"$f":"IF(ISERROR(C39- D39)=TRUE,\"\",C39 - D39)","v":86149.582039454457},{"$f":"IF(ISERROR((((C39- D39)/D39)*100)=TRUE),\"\",IF((((C39- D39)/D39)*100)<-7,FIXED(((C39- D39)/D39)*100, 1,TRUE) &\"%\" & \"▼\",IF((((C39- D39)/D39)*100)>7,FIXED(((C39- D39)/D39)*100, 1,TRUE) &\"%\" &\"▲\",FIXED(((C39- D39)/D39)*100, 1,TRUE)&\"%\")))","v":"168,9%▲"}]
["Kolding og Middelfart Sygehuse","Hovedart 5: Tilskud og overførsler",0,null,null,null,0,""]
["Kolding og Middelfart Sygehuse","Hovedart 6: Finansudgifter",0,null,null,null,0,""]
["Kolding og Middelfart Sygehuse","Hovedart 7: Indtægter",-21967.264999999999,-23691.377085925291,-28995.40549308289,-20048.042135230899,1724.1120859252915,"-7,3%▼"]
["Kolding og Middelfart Sygehuse","Hovedart 8: Finansindtægter",null,-33,-66.06385556181641,-257.78965888109786,33,"-100,0%▼"]
["Kolding og Middelfart Sygehuse","Hovedart 9: Interne udgifter og indtægter",null,null,null,null,0,""]
["Kolding og Middelfart Sygehuse","I alt",{"$f":"SUMIFS((C7:C44),(A7:A44),A45)","v":1760474.4180000001},{"$f":"SUMIFS((D7:D44),(A7:A44),A45)","v":1745280.9815607173},{"$f":"SUMIFS((E7:E44),(A7:A44),A45)","v":1612979.5074528705},{"$f":"SUMIFS((F7:F44),(A7:A44),A45)","v":1558289.5521401865},15193.436439282726,"0,9%"]
["Vejle Sygehus",null,null,null,null,null,0,""]
["Vejle Sygehus","Hovedart 1: Lønninger",1352070.93,1280021.9601546591,1220217.5667972874,1172418.1518733101,72048.96984534082,"5,6%"]
["Vejle Sygehus","Hovedart 2: Varekøb",626841.87600000005,648488.67887283489,635103.27297035779,668983.74318249698,-21646.802872834844,"-3,3%"]
["Vejle Sygehus","Hovedart 4: Tjenesteydelser m.v. ",170714.098,161144.06971404864,150756.69666356043,179244.58180613199,9570.0282859513536,"5,9%"]
["Vejle Sygehus","Hovedart 5: Tilskud og overførsler",-81452.481,null,null,null,-81452.481,""]
["Vejle Sygehus","Hovedart 6: Finansudgifter",null,null,null,null,0,""]
["Vejle Sygehus","Hovedart 7: Indtægter",null,-89524.005536554512,-97388.818819925378,-80491.8582847691,89524.005536554512,"-100,0%▼"]
["Vejle Sygehus","Hovedart 8: Finansindtægter",null,-97.951842918435801,-195.45853443818359,-289.31307111890209,97.951842918435801,"-100,0%▼"]
["Vejle Sygehus","Hovedart 9: Interne udgifter og indtægter",null,null,null,null,0,""]
["Vejle Sygehus","I alt",{"$f":"SUMIFS((C7:C54),(A7:A54),A55)","v":2068174.4230000002},{"$f":"SUMIFS((D7:D54),(A7:A54),A55)","v":2000032.7513620695},{"$f":"SUMIFS((E7:E54),(A7:A54),A55)","v":1908493.2590768419},{"$f":"SUMIFS((F7:F54),(A7:A54),A55)","v":1939865.3055060513},68141.671637930674,"3,4%"]
["Friklinikken i Grindsted",null,null,null,null,null,0,""]
["Friklinikken i Grindsted","Hovedart 1: Lønninger",76150,71374,70956,69125,4776,"6,7%"]
["Friklinikken i Grindsted","Hovedart 2: Varekøb",5312,5256,4577,3922,56,"1,1%"]
["Friklinikken i Grindsted","Hovedart 4: Tjenesteydelser m.v. ",7834,8320,5291,5453,-486,"-5,8%"]
["Friklinikken i Grindsted","Hovedart 5: Tilskud og overførsler",null,null,null,null,0,""]
["Friklinikken i Grindsted","Hovedart 6: Finansudgifter",null,null,null,null,0,""]
["Friklinikken i Grindsted","Hovedart 7: Indtægter",-22397,-21035,-20462,-21027,-1362,"6,5%"]
["Friklinikken i Grindsted","Hovedart 8: Finansindtægter",null,null,null,null,0,""]
["Friklinikken i Grindsted","Hovedart 9: Interne udgifter og indtægter",null,null,null,null,0,""]
["Friklinikken i Grindsted","I alt",{"$f":"SUMIFS((C7:C64),(A7:A64),A65)","v":66899},{"$f":"SUMIFS((D7:D64),(A7:A64),A65)","v":63915},{"$f":"SUMIFS((E7:E64),(A7:A64),A65)","v":60362},{"$f":"SUMIFS((F7:F64),(A7:A64),A65)","v":57473},2984,"4,7%"]
["Øvrige i Region Syddanmark",null,null,null,null,null,0,""]
["Øvrige i Region Syddanmark","Hovedart 1: Lønninger",null,null,null,null,0,""]
["Øvrige i Region Syddanmark","Hovedart 2: Varekøb",null,null,null,null,0,""]
["Øvrige i Region Syddanmark","Hovedart 4: Tjenesteydelser m.v. ",null,null,null,null,0,""]
["Øvrige i Region Syddanmark","Hovedart 5: Tilskud og overførsler",null,null,null,null,0,""]
["Øvrige i Region Syddanmark","Hovedart 6: Finansudgifter",null,null,null,null,{"$f":"IF(ISERROR(C71- D71)=TRUE,\"\",C71 - D71)","v":0},{"$f":"IF(ISERROR((((C71- D71)/D71)*100)=TRUE),\"\",IF((((C71- D71)/D71)*100)<-7,FIXED(((C71- D71)/D71)*100, 1,TRUE) &\"%\" & \"▼\",IF((((C71- D71)/D71)*100)>7,FIXED(((C71- D71)/D71)*100, 1,TRUE) &\"%\" &\"▲\",FIXED(((C71- D71)/D71)*100, 1,TRUE)&\"%\")))","v":""}]
["Øvrige i Region Syddanmark","Hovedart 7: Indtægter",null,null,null,null,0,""]
["Øvrige i Region Syddanmark","Hovedart 8: Finansindtægter",null,null,null,null,0,""]
["Øvrige i Region Syddanmark","Hovedart 9: Interne udgifter og indtægter",null,null,null,null,0,""]
["Øvrige i Region Syddanmark","I alt",{"$f":"SUMIFS((C7:C74),(A7:A74),A75)","v":0},{"$f":"SUMIFS((D7:D74),(A7:A74),A75)","v":0},{"$f":"SUMIFS((E7:E74),(A7:A74),A75)","v":0},{"$f":"SUMIFS((F7:F74),(A7:A74),A75)","v":0},0,""]
["Ikke fordelte udgifter og indtægter",null,null,null,null,null,0,""]
["Ikke fordelte udgifter og indtægter","Hovedart 1: Lønninger",null,null,null,null,0,""]
["Ikke fordelte udgifter og indtægter","Hovedart 2: Varekøb",null,null,null,null,0,""]
["Ikke fordelte udgifter og indtægter","Hovedart 4: Tjenesteydelser m.v. ",null,null,null,null,0,""]
["Ikke fordelte udgifter og indtægter","Hovedart 5: Tilskud og overførsler",null,null,null,null,0,""]
["Ikke fordelte udgifter og indtægter","Hovedart 6: Finansudgifter",null,null,null,null,0,""]
["Ikke fordelte udgifter og indtægter","Hovedart 7: Indtægter",null,null,null,null,0,""]
["Ikke fordelte udgifter og indtægter","Hovedart 8: Finansindtægter",null,null,null,null,0,""]
["Ikke fordelte udgifter og indtægter","Hovedart 9: Interne udgifter og indtægter",null,null,null,null,0,""]
["Ikke fordelte udgifter og indtægter","I alt",{"$f":"SUMIFS((C7:C84),(A7:A84),A85)","v":0},{"$f":"SUMIFS((D7:D84),(A7:A84),A85)","v":0},{"$f":"SUMIFS((E7:E84),(A7:A84),A85)","v":0},{"$f":"SUMIFS((F7:F84),(A7:A84),A85)","v":0},0,""]

{"sheet":"Skema 2","index":1,"n_rows":85,"n_cols":9,"rows_kept":85,"cut":false,"hidden":false,"merged":[[1,1,2,8]]}
["Region Syddanmark, somatiske sygehuse."]
[null,"Skema 2: Fællesudgifter og -indtægter vedrørende sygehusene.\n(1.000 kr.)"]
[]
[]
["Sygehus",null,2023,2022,2021,2020,"Δ2022-2023","% afvigelse","Begrundelse"]
["Odense Universitetshospital/Svendborg"]
["Odense Universitetshospital/Svendborg","Hovedart 1: Lønninger",33261,72456,56510,75655,{"$f":"IF(ISERROR(C7- D7)=TRUE,\"\",C7 - D7)","v":-39195},{"$f":"IF(ISERROR((((C7- D7)/D7)*100)=TRUE),\"\",IF((((C7- D7)/D7)*100)<-7,FIXED(((C7- D7)/D7)*100, 1,TRUE) &\"%\" & \"▼\",IF((((C7- D7)/D7)*100)>7,FIXED(((C7- D7)/D7)*100, 1,TRUE) &\"%\" &\"▲\",FIXED(((C7- D7)/D7)*100, 1,TRUE)&\"%\")))","v":"-54,1%▼"}]
["Odense Universitetshospital/Svendborg","Hovedart 2: Varekøb",12878,-3149,10705,20755,16027,"-509,0%▼"]
["Odense Universitetshospital/Svendborg","Hovedart 4: Tjenesteydelser m.v. ",208093,174479,178749,151701,33614,"19,3%▲"]
["Odense Universitetshospital/Svendborg","Hovedart 5: Tilskud og overførsler",null,0,11,0,0,""]
["Odense Universitetshospital/Svendborg","Hovedart 6: Finansudgifter",null,null,null,0,0,""]
["Odense Universitetshospital/Svendborg","Hovedart 7: Indtægter",-71658,-45567,-17990,-30522,-26091,"57,3%▲"]
["Odense Universitetshospital/Svendborg","Hovedart 8: Finansindtægter",-230,-299,null,null,69,"-23,1%▼"]
["Odense Universitetshospital/Svendborg","Hovedart 9: Interne udgifter og indtægter",null,null,null,null,0,""]
["Odense Universitetshospital/Svendborg","I alt",{"$f":"SUMIFS((C7:C14),(A7:A14),A15)","v":182344},{"$f":"SUMIFS((D7:D14),(A7:A14),A15)","v":197920},{"$f":"SUMIFS((E7:E14),(A7:A14),A15)","v":227985},{"$f":"SUMIFS((F7:F14),(A7:A14),A15)","v":217589},-15576,"-7,9%▼"]
["Sygehus Sønderjylland",null,null,null,null,null,0,""]
["Sygehus Sønderjylland","Hovedart 1: Lønninger",8584,18981,15025,20227,-10397,"-54,8%▼"]
["Sygehus Sønderjylland","Hovedart 2: Varekøb",3324,-825,2846,5549,4149,"-502,9%▼"]
["Sygehus Sønderjylland","Hovedart 4: Tjenesteydelser m.v. ",53707,45706,47526,40558,8001,"17,5%▲"]
["Sygehus Sønderjylland","Hovedart 5: Tilskud og overførsler",null,null,3,0,0,""]
["Sygehus Sønderjylland","Hovedart 6: Finansudgifter",null,null,null,0,0,""]
["Sygehus Sønderjylland","Hovedart 7: Indtægter",-18494,-11937,-4783,-8160,-6557,"54,9%▲"]
["Sygehus Sønderjylland","Hovedart 8: Finansindtægter",-59,-78,null,null,19,"-24,4%▼"]
["Sygehus Sønderjylland","Hovedart 9: Interne udgifter og indtægter",null,null,null,null,0,""]
["Sygehus Sønderjylland","I alt",{"$f":"SUMIFS((C7:C24),(A7:A24),A25)","v":47062},{"$f":"SUMIFS((D7:D24),(A7:A24),A25)","v":51847},{"$f":"SUMIFS((E7:E24),(A7:A24),A25)","v":60617},{"$f":"SUMIFS((F7:F24),(A7:A24),A25)","v":58174},-4785,"-9,2%▼"]
["Esbjerg og Grindsted Sygehus",null,null,null,null,null,0,""]
["Esbjerg og Grindsted Sygehus","Hovedart 1: Lønninger",8542,18477,14296,19345,-9935,"-53,8%▼"]
["Esbjerg og Grindsted Sygehus","Hovedart 2: Varekøb",3307,-803,2708,5307,4110,"-511,8%▼"]
["Esbjerg og Grindsted Sygehus","Hovedart 4: Tjenesteydelser m.v. ",53444,44493,45221,38790,8951,"20,1%▲"]
["Esbjerg og Grindsted Sygehus","Hovedart 5: Tilskud og overførsler",null,null,3,0,0,""]
["Esbjerg og Grindsted Sygehus","Hovedart 6: Finansudgifter",null,null,null,null,0,""]
["Esbjerg og Grindsted Sygehus","Hovedart 7: Indtægter",-18404,-11620,-4551,-7805,-6784,"58,4%▲"]
["Esbjerg og Grindsted Sygehus","Hovedart 8: Finansindtægter",-59,-76,null,null,17,"-22,4%▼"]
["Esbjerg og Grindsted Sygehus","Hovedart 9: Interne udgifter og indtægter",null,null,null,null,0,""]
["Esbjerg og Grindsted Sygehus","I alt",{"$f":"SUMIFS((C7:C34),(A7:A34),A35)","v":46830},{"$f":"SUMIFS((D7:D34),(A7:A34),A35)","v":50471},{"$f":"SUMIFS((E7:E34),(A7:A34),A35)","v":57677},{"$f":"SUMIFS((F7:F34),(A7:A34),A35)","v":55637},-3641,"-7,2%▼"]
["Kolding og Middelfart Sygehuse",null,null,null,null,null,0,""]
["Kolding og Middelfart Sygehuse","Hovedart 1: Lønninger",6406,13963,10943,15579,-7557,"-54,1%▼"]
["Kolding og Middelfart Sygehuse","Hovedart 2: Varekøb",2480,-607,2073,4274,3087,"-508,6%▼"]
["Kolding og Middelfart Sygehuse","Hovedart 4: Tjenesteydelser m.v. ",40076,33623,34613,31239,{"$f":"IF(ISERROR(C39- D39)=TRUE,\"\",C39 - D39)","v":6453},{"$f":"IF(ISERROR((((C39- D39)/D39)*100)=TRUE),\"\",IF((((C39- D39)/D39)*100)<-7,FIXED(((C39- D39)/D39)*100, 1,TRUE) &\"%\" & \"▼\",IF((((C39- D39)/D39)*100)>7,FIXED(((C39- D39)/D39)*100, 1,TRUE) &\"%\" &\"▲\",FIXED(((C39- D39)/D39)*100, 1,TRUE)&\"%\")))","v":"19,2%▲"}]
["Kolding og Middelfart Sygehuse","Hovedart 5: Tilskud og overførsler",null,null,2,null,0,""]
["Kolding og Middelfart Sygehuse","Hovedart 6: Finansudgifter",null,null,null,null,0,""]
["Kolding og Middelfart Sygehuse","Hovedart 7: Indtægter",-13801,-8781,-3484,-6285,-5020,"57,2%▲"]
["Kolding og Middelfart Sygehuse","Hovedart 8: Finansindtægter",-44,-58,null,null,14,"-24,1%▼"]
["Kolding og Middelfart Sygehuse","Hovedart 9: Interne udgifter og indtægter",null,null,null,null,0,""]
["Kolding og Middelfart Sygehuse","I alt",{"$f":"SUMIFS((C7:C44),(A7:A44),A45)","v":35117},{"$f":"SUMIFS((D7:D44),(A7:A44),A45)","v":38140},{"$f":"SUMIFS((E7:E44),(A7:A44),A45)","v":44147},{"$f":"SUMIFS((F7:F44),(A7:A44),A45)","v":44807},-3023,"-7,9%▼"]
["Vejle Sygehus",null,null,null,null,null,0,""]
["Vejle Sygehus","Hovedart 1: Lønninger",9119,19124,14988,19041,-10005,"-52,3%▼"]
["Vejle Sygehus","Hovedart 2: Varekøb",3530,-831,2839,5224,4361,"-524,8%▼"]
["Vejle Sygehus","Hovedart 4: Tjenesteydelser m.v. ",57046,46053,47408,38181,10993,"23,9%▲"]
["Vejle Sygehus","Hovedart 5: Tilskud og overførsler",null,null,3,null,0,""]
["Vejle Sygehus","Hovedart 6: Finansudgifter",null,null,null,null,0,""]
["Vejle Sygehus","Hovedart 7: Indtægter",-19644,-12027,-4771,-7682,-7617,"63,3%▲"]
["Vejle Sygehus","Hovedart 8: Finansindtægter",-63,-79,null,null,16,"-20,3%▼"]
["Vejle Sygehus","Hovedart 9: Interne udgifter og indtægter",null,null,null,null,0,""]
["Vejle Sygehus","I alt",{"$f":"SUMIFS((C7:C54),(A7:A54),A55)","v":49988},{"$f":"SUMIFS((D7:D54),(A7:A54),A55)","v":52240},{"$f":"SUMIFS((E7:E54),(A7:A54),A55)","v":60467},{"$f":"SUMIFS((F7:F54),(A7:A54),A55)","v":54764},-2252,"-4,3%"]
["Friklinikken i Grindsted",null,null,null,null,null,0,""]
["Friklinikken i Grindsted","Hovedart 1: Lønninger",345,734,551,755,-389,"-53,0%▼"]
["Friklinikken i Grindsted","Hovedart 2: Varekøb",133,-32,104,207,165,"-515,6%▼"]
["Friklinikken i Grindsted","Hovedart 4: Tjenesteydelser m.v. ",2155,1766,1742,1514,389,"22,0%▲"]
["Friklinikken i Grindsted","Hovedart 5: Tilskud og overførsler",null,null,null,null,0,""]
["Friklinikken i Grindsted","Hovedart 6: Finansudgifter",null,null,null,null,0,""]
["Friklinikken i Grindsted","Hovedart 7: Indtægter",-742,-461,-175,-305,-281,"61,0%▲"]
["Friklinikken i Grindsted","Hovedart 8: Finansindtægter",-2,-3,null,null,1,"-33,3%▼"]
["Friklinikken i Grindsted","Hovedart 9: Interne udgifter og indtægter",null,null,null,null,0,""]
["Friklinikken i Grindsted","I alt",{"$f":"SUMIFS((C7:C64),(A7:A64),A65)","v":1889},{"$f":"SUMIFS((D7:D64),(A7:A64),A65)","v":2004},{"$f":"SUMIFS((E7:E64),(A7:A64),A65)","v":2222},{"$f":"SUMIFS((F7:F64),(A7:A64),A65)","v":2171},-115,"-5,7%"]
["Øvrige i Region Syddanmark",null,null,null,null,null,0,""]
["Øvrige i Region Syddanmark","Hovedart 1: Lønninger",null,null,null,null,0,""]
["Øvrige i Region Syddanmark","Hovedart 2: Varekøb",null,null,null,null,0,""]
["Øvrige i Region Syddanmark","Hovedart 4: Tjenesteydelser m.v. ",null,null,null,null,0,""]
["Øvrige i Region Syddanmark","Hovedart 5: Tilskud og overførsler",null,null,null,null,0,""]
["Øvrige i Region Syddanmark","Hovedart 6: Finansudgifter",null,null,null,null,{"$f":"IF(ISERROR(C71- D71)=TRUE,\"\",C71 - D71)","v":0},{"$f":"IF(ISERROR((((C71- D71)/D71)*100)=TRUE),\"\",IF((((C71- D71)/D71)*100)<-7,FIXED(((C71- D71)/D71)*100, 1,TRUE) &\"%\" & \"▼\",IF((((C71- D71)/D71)*100)>7,FIXED(((C71- D71)/D71)*100, 1,TRUE) &\"%\" &\"▲\",FIXED(((C71- D71)/D71)*100, 1,TRUE)&\"%\")))","v":""}]
["Øvrige i Region Syddanmark","Hovedart 7: Indtægter",null,null,null,null,0,""]
["Øvrige i Region Syddanmark","Hovedart 8: Finansindtægter",null,null,null,null,0,""]
["Øvrige i Region Syddanmark","Hovedart 9: Interne udgifter og indtægter",null,null,null,null,0,""]
["Øvrige i Region Syddanmark","I alt",{"$f":"SUMIFS((C7:C74),(A7:A74),A75)","v":0},{"$f":"SUMIFS((D7:D74),(A7:A74),A75)","v":0},{"$f":"SUMIFS((E7:E74),(A7:A74),A75)","v":0},{"$f":"SUMIFS((F7:F74),(A7:A74),A75)","v":0},0,""]
["Ikke fordelte udgifter og indtægter",null,null,null,null,null,0,""]
["Ikke fordelte udgifter og indtægter","Hovedart 1: Lønninger",528593,564977,547294,477051,-36384,"-6,4%"]
["Ikke fordelte udgifter og indtægter","Hovedart 2: Varekøb",133727,285626,149866,298189,-151899,"-53,2%▼"]
["Ikke fordelte udgifter og indtægter","Hovedart 4: Tjenesteydelser m.v. ",2784033,3569209,3542816,3080925,-785176,"-22,0%▼"]
["Ikke fordelte udgifter og indtægter","Hovedart 5: Tilskud og overførsler",15713,13445,15945,15972,2268,"16,9%▲"]
["Ikke fordelte udgifter og indtægter","Hovedart 6: Finansudgifter",null,null,null,null,0,""]
["Ikke fordelte udgifter og indtægter","Hovedart 7: Indtægter",-629562,-779741,-683573,-756862,150179,"-19,3%▼"]
["Ikke fordelte udgifter og indtægter","Hovedart 8: Finansindtægter",-93644,-522909,-444120,-46600,429265,"-82,1%▼"]
["Ikke fordelte udgifter og indtægter","Hovedart 9: Interne udgifter og indtægter",null,null,null,null,0,""]
["Ikke fordelte udgifter og indtægter","I alt",{"$f":"SUMIFS((C7:C84),(A7:A84),A85)","v":2738860},{"$f":"SUMIFS((D7:D84),(A7:A84),A85)","v":3130607},{"$f":"SUMIFS((E7:E84),(A7:A84),A85)","v":3128228},{"$f":"SUMIFS((F7:F84),(A7:A84),A85)","v":3068675},-391747,"-12,5%▼"]

{"sheet":"Skema 3","index":2,"n_rows":61,"n_cols":9,"rows_kept":61,"cut":false,"hidden":false,"merged":[[1,1,2,8]]}
["Region Syddanmark, somatiske sygehuse."]
[null,"Skema 3:Regionale fællesudgifter og -indtægter. (1.000 kr.)"]
[]
[]
["Sygehus",null,2023,2022,2021,2020,"Δ2022-2023","% afvigelse","Begrundelse"]
["Odense Universitetshospital/Svendborg"]
["Odense Universitetshospital/Svendborg","1.70.50: Andel af fællesudgifter",149944,147902,125345,121328,{"$f":"IF(ISERROR(C7- D7)=TRUE,\"\",C7 - D7)","v":2042},{"$f":"IF(ISERROR((((C7- D7)/D7)*100)=TRUE),\"\",IF((((C7- D7)/D7)*100)<-7,FIXED(((C7- D7)/D7)*100, 1,TRUE) &\"%\" & \"▼\",IF((((C7- D7)/D7)*100)>7,FIXED(((C7- D7)/D7)*100, 1,TRUE) &\"%\" &\"▲\",FIXED(((C7- D7)/D7)*100, 1,TRUE)&\"%\")))","v":"1,4%"}]
["Odense Universitetshospital/Svendborg","1.60.40: Andel af central administration af sundhed (til og med 2019)",null,null,null,null,0,""]
["Odense Universitetshospital/Svendborg","1.60.41: Andel af øvrige udgifter og indtægter",null,null,null,null,0,""]
["Odense Universitetshospital/Svendborg","1.50.33: Andel af central administration af sundhed (ekskl. psykiatri)",40050,38368,35584,32663,1682,"4,4%"]
["Odense Universitetshospital/Svendborg","1.50.35: Administration af det psykiatriske område (kun central del)",null,null,null,null,0,""]
["Odense Universitetshospital/Svendborg","I alt",{"$f":"SUMIFS((C7:C11),(A7:A11),A12)","v":189994},{"$f":"SUMIFS((D7:D11),(A7:A11),A12)","v":186270},{"$f":"SUMIFS((E7:E11),(A7:A11),A12)","v":160929},{"$f":"SUMIFS((F7:F11),(A7:A11),A12)","v":153991},3724,"2,0%"]
["Sygehus Sønderjylland",null,null,null,null,null,0,""]
["Sygehus Sønderjylland","1.70.50: Andel af fællesudgifter",38699,38744,33327,32438,-45,"-0,1%"]
["Sygehus Sønderjylland","1.60.40: Andel af central administration af sundhed (til og med 2019)",null,null,null,null,0,""]
["Sygehus Sønderjylland","1.60.41: Andel af øvrige udgifter og indtægter",null,null,null,null,0,""]
["Sygehus Sønderjylland","1.50.33: Andel af central administration af sundhed (ekskl. psykiatri)",10337,10051,9461,8733,286,"2,8%"]
["Sygehus Sønderjylland","1.50.35: Administration af det psykiatriske område (kun central del)",null,null,null,null,0,""]
["Sygehus Sønderjylland","I alt",{"$f":"SUMIFS((C7:C18),(A7:A18),A19)","v":49036},{"$f":"SUMIFS((D7:D18),(A7:A18),A19)","v":48795},{"$f":"SUMIFS((E7:E18),(A7:A18),A19)","v":42788},{"$f":"SUMIFS((F7:F18),(A7:A18),A19)","v":41171},241,"0,5%"]
["Esbjerg og Grindsted Sygehus",null,null,null,null,null,0,""]
["Esbjerg og Grindsted Sygehus","1.70.50: Andel af fællesudgifter",38510,37716,31711,31024,794,"2,1%"]
["Esbjerg og Grindsted Sygehus","1.60.40: Andel af central administration af sundhed (til og med 2019)",null,null,null,null,0,""]
["Esbjerg og Grindsted Sygehus","1.60.41: Andel af øvrige udgifter og indtægter",null,null,null,null,0,""]
["Esbjerg og Grindsted Sygehus","1.50.33: Andel af central administration af sundhed (ekskl. psykiatri)",10286,9784,9002,8352,502,"5,1%"]
["Esbjerg og Grindsted Sygehus","1.50.35: Administration af det psykiatriske område (kun central del)",null,null,null,null,0,""]
["Esbjerg og Grindsted Sygehus","I alt",{"$f":"SUMIFS((C7:C25),(A7:A25),A26)","v":48796},{"$f":"SUMIFS((D7:D25),(A7:A25),A26)","v":47500},{"$f":"SUMIFS((E7:E25),(A7:A25),A26)","v":40713},{"$f":"SUMIFS((F7:F25),(A7:A25),A26)","v":39376},1296,"2,7%"]
["Kolding og Middelfart Sygehuse",null,null,null,null,null,0,""]
["Kolding og Middelfart Sygehuse","1.70.50: Andel af fællesudgifter",28878,28502,24272,24984,376,"1,3%"]
["Kolding og Middelfart Sygehuse","1.60.40: Andel af central administration af sundhed (til og med 2019)",null,null,null,null,0,""]
["Kolding og Middelfart Sygehuse","1.60.41: Andel af øvrige udgifter og indtægter",null,null,null,null,0,""]
["Kolding og Middelfart Sygehuse","1.50.33: Andel af central administration af sundhed (ekskl. psykiatri)",7713,7394,6890,6726,319,"4,3%"]
["Kolding og Middelfart Sygehuse","1.50.35: Administration af det psykiatriske område (kun central del)",null,null,null,null,0,""]
["Kolding og Middelfart Sygehuse","I alt",{"$f":"SUMIFS((C7:C32),(A7:A32),A33)","v":36591},{"$f":"SUMIFS((D7:D32),(A7:A32),A33)","v":35896},{"$f":"SUMIFS((E7:E32),(A7:A32),A33)","v":31162},{"$f":"SUMIFS((F7:F32),(A7:A32),A33)","v":31710},695,"1,9%"]
["Vejle Sygehus",null,null,null,null,null,0,""]
["Vejle Sygehus","1.70.50: Andel af fællesudgifter",39553,39038,33244,30536,515,"1,3%"]
["Vejle Sygehus","1.60.40: Andel af central administration af sundhed (til og med 2019)",null,null,null,null,0,""]
["Vejle Sygehus","1.60.41: Andel af øvrige udgifter og indtægter",null,null,null,null,0,""]
["Vejle Sygehus","1.50.33: Andel af central administration af sundhed (ekskl. psykiatri)",10565,10127,9438,8221,438,"4,3%"]
["Vejle Sygehus","1.50.35: Administration af det psykiatriske område (kun central del)",null,null,null,null,{"$f":"IF(ISERROR(C39- D39)=TRUE,\"\",C39 - D39)","v":0},{"$f":"IF(ISERROR((((C39- D39)/D39)*100)=TRUE),\"\",IF((((C39- D39)/D39)*100)<-7,FIXED(((C39- D39)/D39)*100, 1,TRUE) &\"%\" & \"▼\",IF((((C39- D39)/D39)*100)>7,FIXED(((C39- D39)/D39)*100, 1,TRUE) &\"%\" &\"▲\",FIXED(((C39- D39)/D39)*100, 1,TRUE)&\"%\")))","v":""}]
["Vejle Sygehus","I alt",{"$f":"SUMIFS((C7:C39),(A7:A39),A40)","v":50118},{"$f":"SUMIFS((D7:D39),(A7:A39),A40)","v":49165},{"$f":"SUMIFS((E7:E39),(A7:A39),A40)","v":42682},{"$f":"SUMIFS((F7:F39),(A7:A39),A40)","v":38757},953,"1,9%"]
["Friklinikken i Grindsted",null,null,null,null,null,0,""]
["Friklinikken i Grindsted","1.70.50: Andel af fællesudgifter",1553,1497,1221,1211,56,"3,7%"]
["Friklinikken i Grindsted","1.60.40: Andel af central administration af sundhed (til og med 2019)",null,null,null,null,0,""]
["Friklinikken i Grindsted","1.60.41: Andel af øvrige udgifter og indtægter",null,null,null,null,0,""]
["Friklinikken i Grindsted","1.50.33: Andel af central administration af sundhed (ekskl. psykiatri)",415,388,347,326,27,"7,0%"]
["Friklinikken i Grindsted","1.50.35: Administration af det psykiatriske område (kun central del)",null,null,null,null,0,""]
["Friklinikken i Grindsted","I alt",{"$f":"SUMIFS((C7:C46),(A7:A46),A47)","v":1968},{"$f":"SUMIFS((D7:D46),(A7:A46),A47)","v":1885},{"$f":"SUMIFS((E7:E46),(A7:A46),A47)","v":1568},{"$f":"SUMIFS((F7:F46),(A7:A46),A47)","v":1537},83,"4,4%"]
["Øvrige i Region Syddanmark",null,null,null,null,null,0,""]
["Øvrige i Region Syddanmark","1.70.50: Andel af fællesudgifter",null,null,null,null,0,""]
["Øvrige i Region Syddanmark","1.60.40: Andel af central administration af sundhed (til og med 2019)",null,null,null,null,0,""]
["Øvrige i Region Syddanmark","1.60.41: Andel af øvrige udgifter og indtægter",null,null,null,null,0,""]
["Øvrige i Region Syddanmark","1.50.33: Andel af central administration af sundhed (ekskl. psykiatri)",null,null,null,null,0,""]
["Øvrige i Region Syddanmark","1.50.35: Administration af det psykiatriske område (kun central del)",null,null,null,null,0,""]
["Øvrige i Region Syddanmark","I alt",{"$f":"SUMIFS((C7:C53),(A7:A53),A54)","v":0},{"$f":"SUMIFS((D7:D53),(A7:A53),A54)","v":0},{"$f":"SUMIFS((E7:E53),(A7:A53),A54)","v":0},{"$f":"SUMIFS((F7:F53),(A7:A53),A54)","v":0},0,""]
["Ikke fordelte udgifter og indtægter",null,null,null,null,null,0,""]
["Ikke fordelte udgifter og indtægter","1.70.50: Andel af fællesudgifter",131971,139788,162677,226914,-7817,"-5,6%"]
["Ikke fordelte udgifter og indtægter","1.60.40: Andel af central administration af sundhed (til og med 2019)",null,null,null,null,0,""]
["Ikke fordelte udgifter og indtægter","1.60.41: Andel af øvrige udgifter og indtægter",26973,33929,33565,80462,-6956,"-20,5%▼"]
["Ikke fordelte udgifter og indtægter","1.50.33: Andel af central administration af sundhed (ekskl. psykiatri)",null,null,null,null,0,""]
["Ikke fordelte udgifter og indtægter","1.50.35: Administration af det psykiatriske område (kun central del)",null,null,null,21633,0,""]
["Ikke fordelte udgifter og indtægter","I alt",{"$f":"SUMIFS((C7:C60),(A7:A60),A61)","v":158944},{"$f":"SUMIFS((D7:D60),(A7:A60),A61)","v":173717},{"$f":"SUMIFS((E7:E60),(A7:A60),A61)","v":196242},{"$f":"SUMIFS((F7:F60),(A7:A60),A61)","v":329009},-14773,"-8,5%▼"]

{"sheet":"Skema 4","index":3,"n_rows":45,"n_cols":9,"rows_kept":45,"cut":false,"hidden":false,"merged":[[1,1,2,8]]}
["Region Syddanmark, somatiske sygehuse."]
[null,"Skema 4: Udgifter og indtægter til og fra psykiatriske afdelinger konteret på somatiske sygehuse. (1.000 kr.)"]
[]
[]
["Sygehus",null,2023,2022,2021,2020,"Δ2022-2023","% afvigelse","Begrundelse"]
["Odense Universitetshospital/Svendborg"]
["Odense Universitetshospital/Svendborg","Korrektion",null,null,null,null,{"$f":"IF(ISERROR(C7- D7)=TRUE,\"\",C7 - D7)","v":0},{"$f":"IF(ISERROR((((C7- D7)/D7)*100)=TRUE),\"\",IF((((C7- D7)/D7)*100)<-7,FIXED(((C7- D7)/D7)*100, 1,TRUE) &\"%\" & \"▼\",IF((((C7- D7)/D7)*100)>7,FIXED(((C7- D7)/D7)*100, 1,TRUE) &\"%\" &\"▲\",FIXED(((C7- D7)/D7)*100, 1,TRUE)&\"%\")))","v":""}]
["Odense Universitetshospital/Svendborg","Lønudg. på psyk. afd.,somatiske sygehuse",null,null,null,null,0,""]
["Odense Universitetshospital/Svendborg","Øvrige udg. til psyk. afd.,somatiske sygehuse",null,null,null,null,0,""]
["Odense Universitetshospital/Svendborg","I alt",{"$f":"SUMIFS((C7:C9),(A7:A9),A10)","v":0},{"$f":"SUMIFS((D7:D9),(A7:A9),A10)","v":0},{"$f":"SUMIFS((E7:E9),(A7:A9),A10)","v":0},{"$f":"SUMIFS((F7:F9),(A7:A9),A10)","v":0},0,""]
["Sygehus Sønderjylland",null,null,null,null,null,0,""]
["Sygehus Sønderjylland","Korrektion",null,null,null,null,0,""]
["Sygehus Sønderjylland","Lønudg. på psyk. afd.,somatiske sygehuse",null,null,null,null,0,""]
["Sygehus Sønderjylland","Øvrige udg. til psyk. afd.,somatiske sygehuse",null,null,null,null,0,""]
["Sygehus Sønderjylland","I alt",{"$f":"SUMIFS((C7:C14),(A7:A14),A15)","v":0},{"$f":"SUMIFS((D7:D14),(A7:A14),A15)","v":0},{"$f":"SUMIFS((E7:E14),(A7:A14),A15)","v":0},{"$f":"SUMIFS((F7:F14),(A7:A14),A15)","v":0},0,""]
["Esbjerg og Grindsted Sygehus",null,null,null,null,null,0,""]
["Esbjerg og Grindsted Sygehus","Korrektion",null,null,null,null,0,""]
["Esbjerg og Grindsted Sygehus","Lønudg. på psyk. afd.,somatiske sygehuse",null,null,null,null,0,""]
["Esbjerg og Grindsted Sygehus","Øvrige udg. til psyk. afd.,somatiske sygehuse",null,null,null,null,0,""]
["Esbjerg og Grindsted Sygehus","I alt",{"$f":"SUMIFS((C7:C19),(A7:A19),A20)","v":0},{"$f":"SUMIFS((D7:D19),(A7:A19),A20)","v":0},{"$f":"SUMIFS((E7:E19),(A7:A19),A20)","v":0},{"$f":"SUMIFS((F7:F19),(A7:A19),A20)","v":0},0,""]
["Kolding og Middelfart Sygehuse",null,null,null,null,null,0,""]
["Kolding og Middelfart Sygehuse","Korrektion",null,null,null,null,0,""]
["Kolding og Middelfart Sygehuse","Lønudg. på psyk. afd.,somatiske sygehuse",null,null,null,null,0,""]
["Kolding og Middelfart Sygehuse","Øvrige udg. til psyk. afd.,somatiske sygehuse",null,null,null,null,0,""]
["Kolding og Middelfart Sygehuse","I alt",{"$f":"SUMIFS((C7:C24),(A7:A24),A25)","v":0},{"$f":"SUMIFS((D7:D24),(A7:A24),A25)","v":0},{"$f":"SUMIFS((E7:E24),(A7:A24),A25)","v":0},{"$f":"SUMIFS((F7:F24),(A7:A24),A25)","v":0},0,""]
["Vejle Sygehus",null,null,null,null,null,0,""]
["Vejle Sygehus","Korrektion",null,null,null,null,0,""]
["Vejle Sygehus","Lønudg. på psyk. afd.,somatiske sygehuse",null,null,null,null,0,""]
["Vejle Sygehus","Øvrige udg. til psyk. afd.,somatiske sygehuse",null,null,null,null,0,""]
["Vejle Sygehus","I alt",{"$f":"SUMIFS((C7:C29),(A7:A29),A30)","v":0},{"$f":"SUMIFS((D7:D29),(A7:A29),A30)","v":0},{"$f":"SUMIFS((E7:E29),(A7:A29),A30)","v":0},{"$f":"SUMIFS((F7:F29),(A7:A29),A30)","v":0},0,""]
["Friklinikken i Grindsted",null,null,null,null,null,0,""]
["Friklinikken i Grindsted","Korrektion",null,null,null,null,0,""]
["Friklinikken i Grindsted","Lønudg. på psyk. afd.,somatiske sygehuse",null,null,null,null,0,""]
["Friklinikken i Grindsted","Øvrige udg. til psyk. afd.,somatiske sygehuse",null,null,null,null,0,""]
["Friklinikken i Grindsted","I alt",{"$f":"SUMIFS((C7:C34),(A7:A34),A35)","v":0},{"$f":"SUMIFS((D7:D34),(A7:A34),A35)","v":0},{"$f":"SUMIFS((E7:E34),(A7:A34),A35)","v":0},{"$f":"SUMIFS((F7:F34),(A7:A34),A35)","v":0},0,""]
["Øvrige i Region Syddanmark",null,null,null,null,null,0,""]
["Øvrige i Region Syddanmark","Korrektion",null,null,null,null,0,""]
["Øvrige i Region Syddanmark","Lønudg. på psyk. afd.,somatiske sygehuse",null,null,null,null,0,""]
["Øvrige i Region Syddanmark","Øvrige udg. til psyk. afd.,somatiske sygehuse",null,null,null,null,0,""]
["Øvrige i Region Syddanmark","I alt",{"$f":"SUMIFS((C7:C39),(A7:A39),A40)","v":0},{"$f":"SUMIFS((D7:D39),(A7:A39),A40)","v":0},{"$f":"SUMIFS((E7:E39),(A7:A39),A40)","v":0},{"$f":"SUMIFS((F7:F39),(A7:A39),A40)","v":0},0,""]
["Ikke fordelte udgifter og indtægter",null,null,null,null,null,0,""]
["Ikke fordelte udgifter og indtægter","Korrektion",null,null,null,null,0,""]
["Ikke fordelte udgifter og indtægter","Lønudg. på psyk. afd.,somatiske sygehuse",null,null,null,null,0,""]
["Ikke fordelte udgifter og indtægter","Øvrige udg. til psyk. afd.,somatiske sygehuse",null,null,null,null,0,""]
["Ikke fordelte udgifter og indtægter","I alt",{"$f":"SUMIFS((C7:C44),(A7:A44),A45)","v":0},{"$f":"SUMIFS((D7:D44),(A7:A44),A45)","v":0},{"$f":"SUMIFS((E7:E44),(A7:A44),A45)","v":0},{"$f":"SUMIFS((F7:F44),(A7:A44),A45)","v":0},0,""]

{"sheet":"Skema 5","index":4,"n_rows":45,"n_cols":9,"rows_kept":45,"cut":false,"hidden":false,"merged":[[1,1,2,8]]}
["Region Syddanmark, somatiske sygehuse."]
[null,"Skema 5: Leasing- og huslejeudgifter. (1.000 kr.)"]
[]
[]
["Sygehus",null,2023,2022,2021,2020,"Δ2022-2023","% afvigelse","Begrundelse"]
["Odense Universitetshospital/Svendborg"]
["Odense Universitetshospital/Svendborg","Andre udgifter",null,null,null,null,{"$f":"IF(ISERROR(C7- D7)=TRUE,\"\",C7 - D7)","v":0},{"$f":"IF(ISERROR((((C7- D7)/D7)*100)=TRUE),\"\",IF((((C7- D7)/D7)*100)<-7,FIXED(((C7- D7)/D7)*100, 1,TRUE) &\"%\" & \"▼\",IF((((C7- D7)/D7)*100)>7,FIXED(((C7- D7)/D7)*100, 1,TRUE) &\"%\" &\"▲\",FIXED(((C7- D7)/D7)*100, 1,TRUE)&\"%\")))","v":""}]
["Odense Universitetshospital/Svendborg","Leasing- og lejeudgifter",6510,4691,4187.067,3815.895,1819,"38,8%▲","Afd. Z har leaset mikrokirurgisk robot (udg. på 1,5 mio. kr.) "]
["Odense Universitetshospital/Svendborg","Huslejeudgifter",10285,10206,9363.1239999999998,9507.5210000000006,79,"0,8%"]
["Odense Universitetshospital/Svendborg","I alt",{"$f":"SUMIFS((C7:C9),(A7:A9),A10)","v":16795},{"$f":"SUMIFS((D7:D9),(A7:A9),A10)","v":14897},{"$f":"SUMIFS((E7:E9),(A7:A9),A10)","v":13550.190999999999},{"$f":"SUMIFS((F7:F9),(A7:A9),A10)","v":13323.416000000001},1898,"12,7%▲"]
["Sygehus Sønderjylland",null,null,null,null,null,0,""]
["Sygehus Sønderjylland","Andre udgifter",null,null,null,null,0,""]
["Sygehus Sønderjylland","Leasing- og lejeudgifter",2213,2367,2838,null,-154,"-6,5%"]
["Sygehus Sønderjylland","Huslejeudgifter",3924,5109,1547,3417,-1185,"-23,2%▼"]
["Sygehus Sønderjylland","I alt",{"$f":"SUMIFS((C7:C14),(A7:A14),A15)","v":6137},{"$f":"SUMIFS((D7:D14),(A7:A14),A15)","v":7476},{"$f":"SUMIFS((E7:E14),(A7:A14),A15)","v":4385},{"$f":"SUMIFS((F7:F14),(A7:A14),A15)","v":3417},-1339,"-17,9%▼"]
["Esbjerg og Grindsted Sygehus",null,null,null,null,null,0,""]
["Esbjerg og Grindsted Sygehus","Andre udgifter",null,null,null,null,0,""]
["Esbjerg og Grindsted Sygehus","Leasing- og lejeudgifter",1247,1248,1515,1491,-1,"-0,1%"]
["Esbjerg og Grindsted Sygehus","Huslejeudgifter",988,1009,1044,1089,-21,"-2,1%"]
["Esbjerg og Grindsted Sygehus","I alt",{"$f":"SUMIFS((C7:C19),(A7:A19),A20)","v":2235},{"$f":"SUMIFS((D7:D19),(A7:A19),A20)","v":2257},{"$f":"SUMIFS((E7:E19),(A7:A19),A20)","v":2559},{"$f":"SUMIFS((F7:F19),(A7:A19),A20)","v":2580},-22,"-1,0%"]
["Kolding og Middelfart Sygehuse",null,null,null,null,null,0,""]
["Kolding og Middelfart Sygehuse","Andre udgifter",null,null,null,null,0,""]
["Kolding og Middelfart Sygehuse","Leasing- og lejeudgifter",248,246.04926999999998,564.91917000000001,610,1.9507300000000214,"0,8%","Ændret fordeling mellem matriklerne"]
["Kolding og Middelfart Sygehuse","Huslejeudgifter",701,6780.4933545769527,3378.92958,743,-6079.4933545769527,"-89,7%▼","Skyldes primært hvor covid er placeret"]
["Kolding og Middelfart Sygehuse","I alt",{"$f":"SUMIFS((C7:C24),(A7:A24),A25)","v":949},{"$f":"SUMIFS((D7:D24),(A7:A24),A25)","v":7026.5426245769522},{"$f":"SUMIFS((E7:E24),(A7:A24),A25)","v":3943.8487500000001},{"$f":"SUMIFS((F7:F24),(A7:A24),A25)","v":1353},-6077.5426245769522,"-86,5%▼"]
["Vejle Sygehus",null,null,null,null,null,0,""]
["Vejle Sygehus","Andre udgifter",null,null,null,null,0,""]
["Vejle Sygehus","Leasing- og lejeudgifter",454,471.72113999999999,366.16135000000003,381,-17.721139999999991,"-3,8%","Ændret fordeling mellem matriklerne"]
["Vejle Sygehus","Huslejeudgifter",789,1598.6474654230469,5965.6444600000004,5003,-809.64746542304692,"-50,6%▼","Skyldes primært hvor covid er placeret"]
["Vejle Sygehus","I alt",{"$f":"SUMIFS((C7:C29),(A7:A29),A30)","v":1243},{"$f":"SUMIFS((D7:D29),(A7:A29),A30)","v":2070.368605423047},{"$f":"SUMIFS((E7:E29),(A7:A29),A30)","v":6331.8058100000007},{"$f":"SUMIFS((F7:F29),(A7:A29),A30)","v":5384},-827.36860542304703,"-40,0%▼"]
["Friklinikken i Grindsted",null,null,null,null,null,0,""]
["Friklinikken i Grindsted","Andre udgifter",null,null,null,null,0,""]
["Friklinikken i Grindsted","Leasing- og lejeudgifter",null,null,null,null,0,""]
["Friklinikken i Grindsted","Huslejeudgifter",null,null,null,null,0,""]
["Friklinikken i Grindsted","I alt",{"$f":"SUMIFS((C7:C34),(A7:A34),A35)","v":0},{"$f":"SUMIFS((D7:D34),(A7:A34),A35)","v":0},{"$f":"SUMIFS((E7:E34),(A7:A34),A35)","v":0},{"$f":"SUMIFS((F7:F34),(A7:A34),A35)","v":0},0,""]
["Øvrige i Region Syddanmark",null,null,null,null,null,0,""]
["Øvrige i Region Syddanmark","Andre udgifter",null,null,null,null,0,""]
["Øvrige i Region Syddanmark","Leasing- og lejeudgifter",null,null,null,null,0,""]
["Øvrige i Region Syddanmark","Huslejeudgifter",null,null,null,null,0,""]
["Øvrige i Region Syddanmark","I alt",{"$f":"SUMIFS((C7:C39),(A7:A39),A40)","v":0},{"$f":"SUMIFS((D7:D39),(A7:A39),A40)","v":0},{"$f":"SUMIFS((E7:E39),(A7:A39),A40)","v":0},{"$f":"SUMIFS((F7:F39),(A7:A39),A40)","v":0},0,""]
["Ikke fordelte udgifter og indtægter",null,null,null,null,null,0,""]
["Ikke fordelte udgifter og indtægter","Andre udgifter",null,null,null,null,0,""]
["Ikke fordelte udgifter og indtægter","Leasing- og lejeudgifter",266170,298785,286758,408067,-32615,"-10,9%▼"]
["Ikke fordelte udgifter og indtægter","Huslejeudgifter",null,null,null,null,0,""]
["Ikke fordelte udgifter og indtægter","I alt",{"$f":"SUMIFS((C7:C44),(A7:A44),A45)","v":266170},{"$f":"SUMIFS((D7:D44),(A7:A44),A45)","v":298785},{"$f":"SUMIFS((E7:E44),(A7:A44),A45)","v":286758},{"$f":"SUMIFS((F7:F44),(A7:A44),A45)","v":408067},-32615,"-10,9%▼"]

{"sheet":"Skema 6","index":5,"n_rows":405,"n_cols":9,"rows_kept":405,"cut":false,"hidden":false,"merged":[[1,1,2,8]]}
["Region Syddanmark, somatiske sygehuse."]
[null,"Skema 6: Udgifter til andet end patientbehandling. (1.000 kr.)"]
[]
[]
["Sygehus",null,2023,2022,2021,2020,"Δ2022-2023","% afvigelse","Begrundelse"]
["Odense Universitetshospital/Svendborg"]
["Odense Universitetshospital/Svendborg","Skema 6.1: Center for voldsramte (Bispebjerg)",null,0,null,null,{"$f":"IF(ISERROR(C7- D7)=TRUE,\"\",C7 - D7)","v":0},{"$f":"IF(ISERROR((((C7- D7)/D7)*100)=TRUE),\"\",IF((((C7- D7)/D7)*100)<-7,FIXED(((C7- D7)/D7)*100, 1,TRUE) &\"%\" & \"▼\",IF((((C7- D7)/D7)*100)>7,FIXED(((C7- D7)/D7)*100, 1,TRUE) &\"%\" &\"▲\",FIXED(((C7- D7)/D7)*100, 1,TRUE)&\"%\")))","v":""}]
["Odense Universitetshospital/Svendborg","Skema 6.2: Ventilatørbistand i hjemmet, respiratorpatienter",4801.6729999999998,4967.9539999999997,5498.6149999999998,4133,-166.28099999999995,"-3,3%"]
["Odense Universitetshospital/Svendborg","Skema 6.3: Blodprøvetagning i eget hjem",null,0,null,null,0,""]
["Odense Universitetshospital/Svendborg","Skema 6.4: Psykinfo + pårørende",null,0,null,null,0,""]
["Odense Universitetshospital/Svendborg","Skema 6.5: Leveret udstyr til patienter i eget hjem, ilt og sonderemedier",29488.289000000001,26822.422999999999,26326.947,23411,2665.8660000000018,"9,9%▲","Stigning i udgifter til sonderemedier"]
["Odense Universitetshospital/Svendborg","Skema 6.6: Montebello (Nordsjællands Hospitaler)",null,0,null,null,0,""]
["Odense Universitetshospital/Svendborg","Skema 6.7: Satspulje korrektioner mellem år",null,0,null,null,0,""]
["Odense Universitetshospital/Svendborg","Skema 6.8: Klinisk farmakologisk rådgivning af praksissektoren",3600.3690000000001,3488.2240000000002,2954.7280000000001,2463,112.14499999999998,"3,2%"]
["Odense Universitetshospital/Svendborg","Skema 6.9: Tandregulering ifm. operation",null,0,null,null,0,""]
["Odense Universitetshospital/Svendborg","Skema 6.10: Giftlinjen",null,0,null,null,0,""]
["Odense Universitetshospital/Svendborg","Skema 6.11: Tjenestemandspensioner",null,0,null,null,0,""]
["Odense Universitetshospital/Svendborg","Skema 6.12: Art 4.6 Betalinger til staten",null,0,null,null,0,""]
["Odense Universitetshospital/Svendborg","Skema 6.13: Art 4.7 Betalinger til kommuner",null,0,null,null,0,""]
["Odense Universitetshospital/Svendborg","Skema 6.14: Art 4.8 Betalinger til andre regioner",null,0,null,null,0,""]
["Odense Universitetshospital/Svendborg","Skema 6.15: Art 7.6 Betalinger fra staten",null,0,null,null,0,""]
["Odense Universitetshospital/Svendborg","Skema 6.16: Art 7.7 Betalinger fra kommuner",null,0,null,null,0,""]
["Odense Universitetshospital/Svendborg","Skema 6.17: Art 7.8 Betalinger fra andre regioner",null,0,null,null,0,""]
["Odense Universitetshospital/Svendborg","Skema 6.18: Betalinger til selvejende, private og udenlandske sygehuse",null,0,null,null,0,""]
["Odense Universitetshospital/Svendborg","Skema 6.19: Dækningsafgift/ejendomsskat",15080.348,15080.346,15078.69,14996,2.0000000004074536E-3,"0,0%"]
["Odense Universitetshospital/Svendborg","Skema 6.20: Forsikringer/erstatninger",16021.465,16921.976999999999,16181.244000000001,15095,-900.51199999999881,"-5,3%"]
["Odense Universitetshospital/Svendborg","Skema 6.21: Vederlagsfri Lab. –ydelser og andre ydelser til praksissektoren",136960.149,128582.887,127059.262,118393,8377.2620000000024,"6,5%"]
["Odense Universitetshospital/Svendborg","Skema 6.22: Patienttransport",null,0,null,null,0,""]
["Odense Universitetshospital/Svendborg","Skema 6.23: Serviceydelser til/fra andre institutioner eller sygehuse udenfor regionen",null,0,null,null,0,""]
["Odense Universitetshospital/Svendborg","Skema 6.24: Udgifter til eksternt finansierede forskning",79713.092000000004,80991.672000000006,68231.315000000002,58132,-1278.5800000000017,"-1,6%"]
["Odense Universitetshospital/Svendborg","Skema 6.25: Forebyggelse rettet mod praksissektoren og kommuner",null,0,null,null,0,""]
["Odense Universitetshospital/Svendborg","Skema 6.26: Praksisreservelæger",null,0,null,null,0,""]
["Odense Universitetshospital/Svendborg","Skema 6.27: Præhospital",11372.737999999999,11651.439,11698.373,11546,-278.70100000000093,"-2,4%"]
["Odense Universitetshospital/Svendborg","Skema 6.28: Udgifter til Danske Regioner (Kontigent, MedCom, Fællesproj.)",null,0,null,null,0,""]
["Odense Universitetshospital/Svendborg","Skema 6.29: Hospice",null,0,null,null,0,""]
["Odense Universitetshospital/Svendborg","Skema 6.30: Konsulenter(Praksis)",null,0,409.62400000000002,1774,0,"","Helt udgået fra 2022"]
["Odense Universitetshospital/Svendborg","Skema 6.31: Videnskabsetisk Komité",null,0,null,null,0,""]
["Odense Universitetshospital/Svendborg","Skema 6.32: Tolkebistand",264.76400000000001,1210.1320000000001,1104.1420000000001,1146,-945.36800000000005,"-78,1%▼"]
["Odense Universitetshospital/Svendborg","Skema 6.33: Dansk Center for Partikelterapi",null,0,null,null,0,""]
["Odense Universitetshospital/Svendborg","Skema 6.34: Politisk organisation – overførte udgifter fra funktion 4.10.01, 4.10.02 og 4.10.04",null,0,null,null,0,""]
["Odense Universitetshospital/Svendborg","Skema 6.35: Øvrige udgifter, Region Sjælland",null,0,null,null,0,""]
["Odense Universitetshospital/Svendborg","Skema 6.36: Sundhedsydelser ifm. specialsektor",null,0,null,null,0,""]
["Odense Universitetshospital/Svendborg","Skema 6.37: Udgifter til primær sundhed fra skema 2",null,0,null,null,0,""]
["Odense Universitetshospital/Svendborg","Skema 6.38: Udgifter til primær sundhed fra skema 3",null,0,null,null,0,""]
["Odense Universitetshospital/Svendborg","Skema 6.39: Særlige udgifter ifm. COVID-19",9334,17380.915000000001,10305.578,3947,-8046.9150000000009,"-46,3%▼","Beløb svarer til OUH's andel af RSD's bloktilskud"]
["Odense Universitetshospital/Svendborg","Skema 6.40: Udleveret udstyr/tilbehør ifm. cochlear implantater",3108.4380000000001,2933.8150000000001,2904.3620000000001,null,174.62300000000005,"6,0%"]
["Odense Universitetshospital/Svendborg","Skema 6.41: Luxturna-behandling, Rigshospitalet",null,0,null,null,0,""]
["Odense Universitetshospital/Svendborg","Skema 6.42: Udleveret medicin",209513.943,195786,264110.897,null,13727.942999999999,"7,0%▲","Den udleverede medicin er opgjort ud fra inpirationslisten for udleveret medicin. "]
["Odense Universitetshospital/Svendborg","Skema 6.43: Udgifter ifm. sundhedsklynger",6187,0,null,null,6187,""]
["Odense Universitetshospital/Svendborg","Skema 6.44: Ukrainske patienter under særlov eller asyl",null,0,null,null,0,""]
["Odense Universitetshospital/Svendborg","Skema 6.45: Udgifter ifm. de særlige pladser i psykiatrien",null,null,null,null,0,""]
["Odense Universitetshospital/Svendborg","Skema 6.46: Sikringsafdelingen, Region Sjælland",null,null,null,null,0,""]
["Odense Universitetshospital/Svendborg","Skema 6.47: Øvrige (Kan kun benyttes efter aftale med Sundhedsdatastyrelsen)",-21474.269,-12300.999,null,null,-9173.27,"74,6%▲","På skema 6.47 er der trukket indtægter ud for i alt -21.474.269 kr. idet vi dels er blevet kompenseret for Covid-udgifter ved indtægter i alt -11.302.852 kr. og for udgifter til Vinterpakke i alt -10.171.417 kr."]
["Odense Universitetshospital/Svendborg","Lukkede poster (må kun bruges af Sundhedsdatastyrelsen)",null,0,null,null,0,""]
["Odense Universitetshospital/Svendborg","I alt",{"$f":"SUMIFS((C7:C54),(A7:A54),A55)","v":503971.99900000007},{"$f":"SUMIFS((D7:D54),(A7:A54),A55)","v":493516.78499999997},{"$f":"SUMIFS((E7:E54),(A7:A54),A55)","v":551863.777},{"$f":"SUMIFS((F7:F54),(A7:A54),A55)","v":255036},10455.214000000095,"2,1%"]
["Sygehus Sønderjylland",null,null,null,null,null,0,""]
["Sygehus Sønderjylland","Skema 6.1: Center for voldsramte (Bispebjerg)",0,null,null,null,0,""]
["Sygehus Sønderjylland","Skema 6.2: Ventilatørbistand i hjemmet, respiratorpatienter",57,56,61,60,1,"1,8%"]
["Sygehus Sønderjylland","Skema 6.3: Blodprøvetagning i eget hjem",0,null,null,null,0,""]
["Sygehus Sønderjylland","Skema 6.4: Psykinfo + pårørende",0,null,null,null,0,""]
["Sygehus Sønderjylland","Skema 6.5: Leveret udstyr til patienter i eget hjem, ilt og sonderemedier",7575,33,1125,1546,7542,"22854,5%▲","Fejl i 2022-opgørelsen"]
["Sygehus Sønderjylland","Skema 6.6: Montebello (Nordsjællands Hospitaler)",0,null,null,null,0,""]
["Sygehus Sønderjylland","Skema 6.7: Satspulje korrektioner mellem år",0,null,null,null,0,""]
["Sygehus Sønderjylland","Skema 6.8: Klinisk farmakologisk rådgivning af praksissektoren",0,null,null,null,0,""]
["Sygehus Sønderjylland","Skema 6.9: Tandregulering ifm. operation",0,null,null,null,0,""]
["Sygehus Sønderjylland","Skema 6.10: Giftlinjen",0,null,null,null,0,""]
["Sygehus Sønderjylland","Skema 6.11: Tjenestemandspensioner",0,null,null,null,0,""]
["Sygehus Sønderjylland","Skema 6.12: Art 4.6 Betalinger til staten",0,null,null,null,0,""]
["Sygehus Sønderjylland","Skema 6.13: Art 4.7 Betalinger til kommuner",0,null,null,null,0,""]
["Sygehus Sønderjylland","Skema 6.14: Art 4.8 Betalinger til andre regioner",0,null,null,null,0,""]
["Sygehus Sønderjylland","Skema 6.15: Art 7.6 Betalinger fra staten",0,null,null,null,{"$f":"IF(ISERROR(C71- D71)=TRUE,\"\",C71 - D71)","v":0},{"$f":"IF(ISERROR((((C71- D71)/D71)*100)=TRUE),\"\",IF((((C71- D71)/D71)*100)<-7,FIXED(((C71- D71)/D71)*100, 1,TRUE) &\"%\" & \"▼\",IF((((C71- D71)/D71)*100)>7,FIXED(((C71- D71)/D71)*100, 1,TRUE) &\"%\" &\"▲\",FIXED(((C71- D71)/D71)*100, 1,TRUE)&\"%\")))","v":""}]
["Sygehus Sønderjylland","Skema 6.16: Art 7.7 Betalinger fra kommuner",0,null,null,null,0,""]
["Sygehus Sønderjylland","Skema 6.17: Art 7.8 Betalinger fra andre regioner",0,null,null,null,0,""]
["Sygehus Sønderjylland","Skema 6.18: Betalinger til selvejende, private og udenlandske sygehuse",0,null,null,null,0,""]
["Sygehus Sønderjylland","Skema 6.19: Dækningsafgift/ejendomsskat",5989,5837,5090,5090,152,"2,6%"]
["Sygehus Sønderjylland","Skema 6.20: Forsikringer/erstatninger",4978,5422,4739,4221,-444,"-8,2%▼"]
["Sygehus Sønderjylland","Skema 6.21: Vederlagsfri Lab. –ydelser og andre ydelser til praksissektoren",60743,65140,64895,60256,-4397,"-6,8%"]
["Sygehus Sønderjylland","Skema 6.22: Patienttransport",416,865,513,239,-449,"-51,9%▼"]
["Sygehus Sønderjylland","Skema 6.23: Serviceydelser til/fra andre institutioner eller sygehuse udenfor regionen",0,null,null,null,0,""]
["Sygehus Sønderjylland","Skema 6.24: Udgifter til eksternt finansierede forskning",0,null,null,null,0,""]
["Sygehus Sønderjylland","Skema 6.25: Forebyggelse rettet mod praksissektoren og kommuner",0,null,null,null,0,""]
["Sygehus Sønderjylland","Skema 6.26: Praksisreservelæger",0,null,null,null,0,""]
["Sygehus Sønderjylland","Skema 6.27: Præhospital",9444,13221,12765,13215,-3777,"-28,6%▼"]
["Sygehus Sønderjylland","Skema 6.28: Udgifter til Danske Regioner (Kontigent, MedCom, Fællesproj.)",0,null,null,null,0,""]
["Sygehus Sønderjylland","Skema 6.29: Hospice",189,116,138,123,73,"62,9%▲","Småbeløb"]
["Sygehus Sønderjylland","Skema 6.30: Konsulenter(Praksis)",941,881,798,787,60,"6,8%"]
["Sygehus Sønderjylland","Skema 6.31: Videnskabsetisk Komité",0,null,null,null,0,""]
["Sygehus Sønderjylland","Skema 6.32: Tolkebistand",127,101,179,215,26,"25,7%▲","Småbeløb"]
["Sygehus Sønderjylland","Skema 6.33: Dansk Center for Partikelterapi",0,null,null,null,0,""]
["Sygehus Sønderjylland","Skema 6.34: Politisk organisation – overførte udgifter fra funktion 4.10.01, 4.10.02 og 4.10.04",0,null,null,null,0,""]
["Sygehus Sønderjylland","Skema 6.35: Øvrige udgifter, Region Sjælland",0,null,null,null,0,""]
["Sygehus Sønderjylland","Skema 6.36: Sundhedsydelser ifm. specialsektor",0,null,null,null,0,""]
["Sygehus Sønderjylland","Skema 6.37: Udgifter til primær sundhed fra skema 2",0,null,null,null,0,""]
["Sygehus Sønderjylland","Skema 6.38: Udgifter til primær sundhed fra skema 3",0,null,null,null,0,""]
["Sygehus Sønderjylland","Skema 6.39: Særlige udgifter ifm. COVID-19",0,13275,1712,1177,-13275,"-100,0%▼","Fald i særlige udgifter ifm Covid"]
["Sygehus Sønderjylland","Skema 6.40: Udleveret udstyr/tilbehør ifm. cochlear implantater",0,null,null,null,0,""]
["Sygehus Sønderjylland","Skema 6.41: Luxturna-behandling, Rigshospitalet",0,null,null,null,0,""]
["Sygehus Sønderjylland","Skema 6.42: Udleveret medicin",59031,55055,64240,null,3976,"7,2%▲","Stigning i udleveret medicin til patienter"]
["Sygehus Sønderjylland","Skema 6.43: Udgifter ifm. sundhedsklynger",0,null,null,null,0,""]
["Sygehus Sønderjylland","Skema 6.44: Ukrainske patienter under særlov eller asyl",0,null,null,null,0,""]
["Sygehus Sønderjylland","Skema 6.45: Udgifter ifm. de særlige pladser i psykiatrien",0,null,null,null,0,""]
["Sygehus Sønderjylland","Skema 6.46: Sikringsafdelingen, Region Sjælland",0,null,null,null,0,""]
["Sygehus Sønderjylland","Skema 6.47: Øvrige (Kan kun benyttes efter aftale med Sundhedsdatastyrelsen)",0,-5485,null,null,5485,"-100,0%▼"]
["Sygehus Sønderjylland","Lukkede poster (må kun bruges af Sundhedsdatastyrelsen)",null,null,null,null,0,""]
["Sygehus Sønderjylland","I alt",{"$f":"SUMIFS((C7:C104),(A7:A104),A105)","v":149490},{"$f":"SUMIFS((D7:D104),(A7:A104),A105)","v":154517},{"$f":"SUMIFS((E7:E104),(A7:A104),A105)","v":156255},{"$f":"SUMIFS((F7:F104),(A7:A104),A105)","v":86929},-5027,"-3,3%"]
["Esbjerg og Grindsted Sygehus",null,null,null,null,null,0,""]
["Esbjerg og Grindsted Sygehus","Skema 6.1: Center for voldsramte (Bispebjerg)",null,null,null,null,0,""]
["Esbjerg og Grindsted Sygehus","Skema 6.2: Ventilatørbistand i hjemmet, respiratorpatienter",null,null,null,null,0,""]
["Esbjerg og Grindsted Sygehus","Skema 6.3: Blodprøvetagning i eget hjem",null,null,null,null,0,""]
["Esbjerg og Grindsted Sygehus","Skema 6.4: Psykinfo + pårørende",null,null,null,null,0,""]
["Esbjerg og Grindsted Sygehus","Skema 6.5: Leveret udstyr til patienter i eget hjem, ilt og sonderemedier",4626,4153,3369,3148,473,"11,4%▲","Generel stigende ilt"]
["Esbjerg og Grindsted Sygehus","Skema 6.6: Montebello (Nordsjællands Hospitaler)",null,null,null,null,0,""]
["Esbjerg og Grindsted Sygehus","Skema 6.7: Satspulje korrektioner mellem år",null,null,null,null,0,""]
["Esbjerg og Grindsted Sygehus","Skema 6.8: Klinisk farmakologisk rådgivning af praksissektoren",null,null,null,null,0,""]
["Esbjerg og Grindsted Sygehus","Skema 6.9: Tandregulering ifm. operation",null,null,null,null,0,""]
["Esbjerg og Grindsted Sygehus","Skema 6.10: Giftlinjen",null,null,null,null,0,""]
["Esbjerg og Grindsted Sygehus","Skema 6.11: Tjenestemandspensioner",null,null,null,null,0,""]
["Esbjerg og Grindsted Sygehus","Skema 6.12: Art 4.6 Betalinger til staten",null,null,null,null,0,""]
["Esbjerg og Grindsted Sygehus","Skema 6.13: Art 4.7 Betalinger til kommuner",null,null,null,null,0,""]
["Esbjerg og Grindsted Sygehus","Skema 6.14: Art 4.8 Betalinger til andre regioner",null,null,null,null,0,""]
["Esbjerg og Grindsted Sygehus","Skema 6.15: Art 7.6 Betalinger fra staten",null,null,null,null,0,""]
["Esbjerg og Grindsted Sygehus","Skema 6.16: Art 7.7 Betalinger fra kommuner",null,null,null,null,0,""]
["Esbjerg og Grindsted Sygehus","Skema 6.17: Art 7.8 Betalinger fra andre regioner",null,null,null,null,0,""]
["Esbjerg og Grindsted Sygehus","Skema 6.18: Betalinger til selvejende, private og udenlandske sygehuse",null,null,null,null,0,""]
["Esbjerg og Grindsted Sygehus","Skema 6.19: Dækningsafgift/ejendomsskat",4301,4258,4190,4225,43,"1,0%"]
["Esbjerg og Grindsted Sygehus","Skema 6.20: Forsikringer/erstatninger",3822,3824,3806,3688,-2,"-0,1%"]
["Esbjerg og Grindsted Sygehus","Skema 6.21: Vederlagsfri Lab. –ydelser og andre ydelser til praksissektoren",84672,75756,68105,63689,8916,"11,8%▲","Vækst i analyser for praksis"]
["Esbjerg og Grindsted Sygehus","Skema 6.22: Patienttransport",416,717,786,686,-301,"-42,0%▼","Færre babylance transporter til OUH"]
["Esbjerg og Grindsted Sygehus","Skema 6.23: Serviceydelser til/fra andre institutioner eller sygehuse udenfor regionen",null,null,null,null,0,""]
["Esbjerg og Grindsted Sygehus","Skema 6.24: Udgifter til eksternt finansierede forskning",null,null,null,null,0,""]
["Esbjerg og Grindsted Sygehus","Skema 6.25: Forebyggelse rettet mod praksissektoren og kommuner",null,null,null,null,0,""]
["Esbjerg og Grindsted Sygehus","Skema 6.26: Praksisreservelæger",null,null,null,null,0,""]
["Esbjerg og Grindsted Sygehus","Skema 6.27: Præhospital",4982,5063,5092,4573,-81,"-1,6%"]
["Esbjerg og Grindsted Sygehus","Skema 6.28: Udgifter til Danske Regioner (Kontigent, MedCom, Fællesproj.)",null,null,null,null,0,""]
["Esbjerg og Grindsted Sygehus","Skema 6.29: Hospice",null,null,null,null,{"$f":"IF(ISERROR(C135- D135)=TRUE,\"\",C135 - D135)","v":0},{"$f":"IF(ISERROR((((C135- D135)/D135)*100)=TRUE),\"\",IF((((C135- D135)/D135)*100)<-7,FIXED(((C135- D135)/D135)*100, 1,TRUE) &\"%\" & \"▼\",IF((((C135- D135)/D135)*100)>7,FIXED(((C135- D135)/D135)*100, 1,TRUE) &\"%\" &\"▲\",FIXED(((C135- D135)/D135)*100, 1,TRUE)&\"%\")))","v":""}]
["Esbjerg og Grindsted Sygehus","Skema 6.30: Konsulenter(Praksis)",521,499,553,580,22,"4,4%"]
["Esbjerg og Grindsted Sygehus","Skema 6.31: Videnskabsetisk Komité",null,null,null,null,0,""]
["Esbjerg og Grindsted Sygehus","Skema 6.32: Tolkebistand",183,132,182,201,51,"38,6%▲","Stigning tolkeudgifter udenfor tisrummet 8-16,00"]
["Esbjerg og Grindsted Sygehus","Skema 6.33: Dansk Center for Partikelterapi",null,null,null,null,0,""]
["Esbjerg og Grindsted Sygehus","Skema 6.34: Politisk organisation – overførte udgifter fra funktion 4.10.01, 4.10.02 og 4.10.04",null,null,null,null,0,""]
["Esbjerg og Grindsted Sygehus","Skema 6.35: Øvrige udgifter, Region Sjælland",null,null,null,null,0,""]
["Esbjerg og Grindsted Sygehus","Skema 6.36: Sundhedsydelser ifm. specialsektor",null,null,null,null,0,""]
["Esbjerg og Grindsted Sygehus","Skema 6.37: Udgifter til primær sundhed fra skema 2",null,null,null,null,0,""]
["Esbjerg og Grindsted Sygehus","Skema 6.38: Udgifter til primær sundhed fra skema 3",null,null,null,null,0,""]
["Esbjerg og Grindsted Sygehus","Skema 6.39: Særlige udgifter ifm. COVID-19",3383,5159,{"$f":"2368+3004","v":5372},3247,-1776,"-34,4%▼","Fald i særlige udgifter ifm Covid"]
["Esbjerg og Grindsted Sygehus","Skema 6.40: Udleveret udstyr/tilbehør ifm. cochlear implantater",null,null,null,null,0,""]
["Esbjerg og Grindsted Sygehus","Skema 6.41: Luxturna-behandling, Rigshospitalet",null,null,null,null,0,""]
["Esbjerg og Grindsted Sygehus","Skema 6.42: Udleveret medicin",68395,59859,50156,null,8536,"14,3%▲","Stigning i udleveret medicin til patienter"]
["Esbjerg og Grindsted Sygehus","Skema 6.43: Udgifter ifm. sundhedsklynger",null,null,null,null,0,""]
["Esbjerg og Grindsted Sygehus","Skema 6.44: Ukrainske patienter under særlov eller asyl",null,null,null,null,0,""]
["Esbjerg og Grindsted Sygehus","Skema 6.45: Udgifter ifm. de særlige pladser i psykiatrien",null,null,null,null,0,""]
["Esbjerg og Grindsted Sygehus","Skema 6.46: Sikringsafdelingen, Region Sjælland",null,null,null,null,0,""]
["Esbjerg og Grindsted Sygehus","Skema 6.47: Øvrige (Kan kun benyttes efter aftale med Sundhedsdatastyrelsen)",null,-12309,null,null,12309,"-100,0%▼"]
["Esbjerg og Grindsted Sygehus","Lukkede poster (må kun bruges af Sundhedsdatastyrelsen)",null,null,null,null,0,""]
["Esbjerg og Grindsted Sygehus","I alt",{"$f":"SUMIFS((C7:C154),(A7:A154),A155)","v":175301},{"$f":"SUMIFS((D7:D154),(A7:A154),A155)","v":147111},{"$f":"SUMIFS((E7:E154),(A7:A154),A155)","v":141611},{"$f":"SUMIFS((F7:F154),(A7:A154),A155)","v":84037},28190,"19,2%▲"]
["Kolding og Middelfart Sygehuse",null,null,null,null,null,0,""]
["Kolding og Middelfart Sygehuse","Skema 6.1: Center for voldsramte (Bispebjerg)",null,null,null,null,0,""]
["Kolding og Middelfart Sygehuse","Skema 6.2: Ventilatørbistand i hjemmet, respiratorpatienter",null,null,null,null,0,""]
["Kolding og Middelfart Sygehuse","Skema 6.3: Blodprøvetagning i eget hjem",2422.163,2422.1625260000001,2568.3690251207245,2551.3733437471146,4.7399999994013342E-4,"0,0%"]
["Kolding og Middelfart Sygehuse","Skema 6.4: Psykinfo + pårørende",null,null,null,null,0,""]
["Kolding og Middelfart Sygehuse","Skema 6.5: Leveret udstyr til patienter i eget hjem, ilt og sonderemedier",0,1.5479499999999999,16.854459999999847,5.8108999999999469,-1.5479499999999999,"-100,0%▼"]
["Kolding og Middelfart Sygehuse","Skema 6.6: Montebello (Nordsjællands Hospitaler)",null,null,null,null,0,""]
["Kolding og Middelfart Sygehuse","Skema 6.7: Satspulje korrektioner mellem år",null,null,null,null,0,""]
["Kolding og Middelfart Sygehuse","Skema 6.8: Klinisk farmakologisk rådgivning af praksissektoren",null,null,null,null,0,""]
["Kolding og Middelfart Sygehuse","Skema 6.9: Tandregulering ifm. operation",null,null,null,null,0,""]
["Kolding og Middelfart Sygehuse","Skema 6.10: Giftlinjen",null,null,null,null,0,""]
["Kolding og Middelfart Sygehuse","Skema 6.11: Tjenestemandspensioner",null,null,null,null,0,""]
["Kolding og Middelfart Sygehuse","Skema 6.12: Art 4.6 Betalinger til staten",null,null,null,null,0,""]
["Kolding og Middelfart Sygehuse","Skema 6.13: Art 4.7 Betalinger til kommuner",null,null,null,null,0,""]
["Kolding og Middelfart Sygehuse","Skema 6.14: Art 4.8 Betalinger til andre regioner",4597.3990800000001,3309.8527972322249,2241.0548934830017,1878.2057564264105,1287.5462827677752,"38,9%▲"]
["Kolding og Middelfart Sygehuse","Skema 6.15: Art 7.6 Betalinger fra staten",null,null,null,null,0,""]
["Kolding og Middelfart Sygehuse","Skema 6.16: Art 7.7 Betalinger fra kommuner",null,null,null,null,0,""]
["Kolding og Middelfart Sygehuse","Skema 6.17: Art 7.8 Betalinger fra andre regioner",null,null,null,null,0,""]
["Kolding og Middelfart Sygehuse","Skema 6.18: Betalinger til selvejende, private og udenlandske sygehuse",null,null,null,null,0,""]
["Kolding og Middelfart Sygehuse","Skema 6.19: Dækningsafgift/ejendomsskat",null,6069.3144900000007,6368.3541299999997,6300.0688100000007,-6069.3144900000007,"-100,0%▼"]
["Kolding og Middelfart Sygehuse","Skema 6.20: Forsikringer/erstatninger",22.693999999999999,4412.1010500000002,3960.0638300000001,3780.3597199999995,-4389.4070499999998,"-99,5%▼"]
["Kolding og Middelfart Sygehuse","Skema 6.21: Vederlagsfri Lab. –ydelser og andre ydelser til praksissektoren",null,29458.449999999997,29934.799999999999,28584.320800000001,-29458.449999999997,"-100,0%▼"]
["Kolding og Middelfart Sygehuse","Skema 6.22: Patienttransport",222.71799999999999,1081.76722,757.71905999999979,777.38731000000007,-859.04921999999999,"-79,4%▼"]
["Kolding og Middelfart Sygehuse","Skema 6.23: Serviceydelser til/fra andre institutioner eller sygehuse udenfor regionen",null,null,null,null,0,""]
["Kolding og Middelfart Sygehuse","Skema 6.24: Udgifter til eksternt finansierede forskning",null,null,null,null,0,""]
["Kolding og Middelfart Sygehuse","Skema 6.25: Forebyggelse rettet mod praksissektoren og kommuner",null,null,null,null,0,""]
["Kolding og Middelfart Sygehuse","Skema 6.26: Praksisreservelæger",null,null,null,null,0,""]
["Kolding og Middelfart Sygehuse","Skema 6.27: Præhospital",5352.8239999999996,{"$f":"3353983.87888/1000","v":3353.9838788800002},5531.3578299999999,5637.16,1998.8401211199994,"59,6%▲"]
["Kolding og Middelfart Sygehuse","Skema 6.28: Udgifter til Danske Regioner (Kontigent, MedCom, Fællesproj.)",null,null,null,null,0,""]
["Kolding og Middelfart Sygehuse","Skema 6.29: Hospice",null,null,null,null,0,""]
["Kolding og Middelfart Sygehuse","Skema 6.30: Konsulenter(Praksis)",null,null,null,null,0,""]
["Kolding og Middelfart Sygehuse","Skema 6.31: Videnskabsetisk Komité",null,null,null,null,0,""]
["Kolding og Middelfart Sygehuse","Skema 6.32: Tolkebistand",441.01799999999997,393.02110999999996,409.89428999999996,550.94417999999996,47.996890000000008,"12,2%▲"]
["Kolding og Middelfart Sygehuse","Skema 6.33: Dansk Center for Partikelterapi",null,null,null,null,0,""]
["Kolding og Middelfart Sygehuse","Skema 6.34: Politisk organisation – overførte udgifter fra funktion 4.10.01, 4.10.02 og 4.10.04",null,null,null,null,0,""]
["Kolding og Middelfart Sygehuse","Skema 6.35: Øvrige udgifter, Region Sjælland",null,null,null,null,0,""]
["Kolding og Middelfart Sygehuse","Skema 6.36: Sundhedsydelser ifm. specialsektor",null,null,null,null,0,""]
["Kolding og Middelfart Sygehuse","Skema 6.37: Udgifter til primær sundhed fra skema 2",null,null,null,null,0,""]
["Kolding og Middelfart Sygehuse","Skema 6.38: Udgifter til primær sundhed fra skema 3",null,null,null,null,0,""]
["Kolding og Middelfart Sygehuse","Skema 6.39: Særlige udgifter ifm. COVID-19",null,{"$f":"(4710+3323)/2","v":4016.5},5143,1090.7829999999999,-4016.5,"-100,0%▼"]
["Kolding og Middelfart Sygehuse","Skema 6.40: Udleveret udstyr/tilbehør ifm. cochlear implantater",null,null,null,null,0,""]
["Kolding og Middelfart Sygehuse","Skema 6.41: Luxturna-behandling, Rigshospitalet",null,null,null,null,0,""]
["Kolding og Middelfart Sygehuse","Skema 6.42: Udleveret medicin",16499.024000000001,32247.954000000002,35540.355000000003,null,-15748.93,"-48,8%▼"]
["Kolding og Middelfart Sygehuse","Skema 6.43: Udgifter ifm. sundhedsklynger",null,null,null,null,{"$f":"IF(ISERROR(C199- D199)=TRUE,\"\",C199 - D199)","v":0},{"$f":"IF(ISERROR((((C199- D199)/D199)*100)=TRUE),\"\",IF((((C199- D199)/D199)*100)<-7,FIXED(((C199- D199)/D199)*100, 1,TRUE) &\"%\" & \"▼\",IF((((C199- D199)/D199)*100)>7,FIXED(((C199- D199)/D199)*100, 1,TRUE) &\"%\" &\"▲\",FIXED(((C199- D199)/D199)*100, 1,TRUE)&\"%\")))","v":""}]
["Kolding og Middelfart Sygehuse","Skema 6.44: Ukrainske patienter under særlov eller asyl",null,null,null,null,0,""]
["Kolding og Middelfart Sygehuse","Skema 6.45: Udgifter ifm. de særlige pladser i psykiatrien",null,null,null,null,0,""]
["Kolding og Middelfart Sygehuse","Skema 6.46: Sikringsafdelingen, Region Sjælland",null,null,null,null,0,""]
["Kolding og Middelfart Sygehuse","Skema 6.47: Øvrige (Kan kun benyttes efter aftale med Sundhedsdatastyrelsen)",null,null,null,null,0,""]
["Kolding og Middelfart Sygehuse","Lukkede poster (må kun bruges af Sundhedsdatastyrelsen)",null,null,null,null,0,""]
["Kolding og Middelfart Sygehuse","I alt",{"$f":"SUMIFS((C7:C204),(A7:A204),A205)","v":29557.840080000002},{"$f":"SUMIFS((D7:D204),(A7:A204),A205)","v":86766.655022112231},{"$f":"SUMIFS((E7:E204),(A7:A204),A205)","v":92471.822518603731},{"$f":"SUMIFS((F7:F204),(A7:A204),A205)","v":51156.413820173519},-57208.814942112229,"-65,9%▼"]
["Vejle Sygehus",null,null,null,null,null,0,""]
["Vejle Sygehus","Skema 6.1: Center for voldsramte (Bispebjerg)",null,null,null,null,0,""]
["Vejle Sygehus","Skema 6.2: Ventilatørbistand i hjemmet, respiratorpatienter",null,null,null,null,0,""]
["Vejle Sygehus","Skema 6.3: Blodprøvetagning i eget hjem",2298.137522,2298.137522,1478.2629980770225,1468.4808808438754,0,"0,0%"]
["Vejle Sygehus","Skema 6.4: Psykinfo + pårørende",null,null,null,null,0,""]
["Vejle Sygehus","Skema 6.5: Leveret udstyr til patienter i eget hjem, ilt og sonderemedier",41,45.97831,46.490770000000069,57.285769999999928,-4.9783100000000005,"-10,8%▼"]
["Vejle Sygehus","Skema 6.6: Montebello (Nordsjællands Hospitaler)",null,null,null,null,0,""]
["Vejle Sygehus","Skema 6.7: Satspulje korrektioner mellem år",null,null,null,null,0,""]
["Vejle Sygehus","Skema 6.8: Klinisk farmakologisk rådgivning af praksissektoren",null,null,null,null,0,""]
["Vejle Sygehus","Skema 6.9: Tandregulering ifm. operation",null,null,null,null,0,""]
["Vejle Sygehus","Skema 6.10: Giftlinjen",null,null,null,null,0,""]
["Vejle Sygehus","Skema 6.11: Tjenestemandspensioner",null,null,null,null,0,""]
["Vejle Sygehus","Skema 6.12: Art 4.6 Betalinger til staten",null,null,null,null,0,""]
["Vejle Sygehus","Skema 6.13: Art 4.7 Betalinger til kommuner",null,null,null,null,0,""]
["Vejle Sygehus","Skema 6.14: Art 4.8 Betalinger til andre regioner",3519.94067,5713.6567168038709,4426.4361065169978,4467.3252736842778,-2193.716046803871,"-38,4%▼"]
["Vejle Sygehus","Skema 6.15: Art 7.6 Betalinger fra staten",null,null,null,null,0,""]
["Vejle Sygehus","Skema 6.16: Art 7.7 Betalinger fra kommuner",null,null,null,null,0,""]
["Vejle Sygehus","Skema 6.17: Art 7.8 Betalinger fra andre regioner",null,null,null,null,0,""]
["Vejle Sygehus","Skema 6.18: Betalinger til selvejende, private og udenlandske sygehuse",null,null,null,null,0,""]
["Vejle Sygehus","Skema 6.19: Dækningsafgift/ejendomsskat",null,4711.7889599999999,4723.9590699999999,4349.2079200000007,-4711.7889599999999,"-100,0%▼"]
["Vejle Sygehus","Skema 6.20: Forsikringer/erstatninger",78.584000000000003,4538.2803199999998,4429.4894299999996,4234.61978,-4459.69632,"-98,3%▼"]
["Vejle Sygehus","Skema 6.21: Vederlagsfri Lab. –ydelser og andre ydelser til praksissektoren",null,45708.62,45182.27,39775.362110000002,-45708.62,"-100,0%▼"]
["Vejle Sygehus","Skema 6.22: Patienttransport",3.415,143.12939,332.78112999999991,172.82932,-139.71439000000001,"-97,6%▼"]
["Vejle Sygehus","Skema 6.23: Serviceydelser til/fra andre institutioner eller sygehuse udenfor regionen",null,null,1782.3402525993642,1770.5459634079523,0,""]
["Vejle Sygehus","Skema 6.24: Udgifter til eksternt finansierede forskning",null,null,null,null,0,""]
["Vejle Sygehus","Skema 6.25: Forebyggelse rettet mod praksissektoren og kommuner",null,null,null,null,0,""]
["Vejle Sygehus","Skema 6.26: Praksisreservelæger",null,null,null,null,0,""]
["Vejle Sygehus","Skema 6.27: Præhospital",0,null,null,null,0,""]
["Vejle Sygehus","Skema 6.28: Udgifter til Danske Regioner (Kontigent, MedCom, Fællesproj.)",null,null,null,null,0,""]
["Vejle Sygehus","Skema 6.29: Hospice",null,null,null,null,0,""]
["Vejle Sygehus","Skema 6.30: Konsulenter(Praksis)",822.94,856.34299999999996,856.34299999999996,1077.9258299999999,-33.402999999999906,"-3,9%"]
["Vejle Sygehus","Skema 6.31: Videnskabsetisk Komité",null,null,null,null,0,""]
["Vejle Sygehus","Skema 6.32: Tolkebistand",670.71600000000001,632.26189999999997,841.47631999999976,719.75009000000011,38.454100000000039,"6,1%"]
["Vejle Sygehus","Skema 6.33: Dansk Center for Partikelterapi",null,null,null,null,0,""]
["Vejle Sygehus","Skema 6.34: Politisk organisation – overførte udgifter fra funktion 4.10.01, 4.10.02 og 4.10.04",null,null,null,null,0,""]
["Vejle Sygehus","Skema 6.35: Øvrige udgifter, Region Sjælland",null,null,null,null,0,""]
["Vejle Sygehus","Skema 6.36: Sundhedsydelser ifm. specialsektor",null,null,null,null,0,""]
["Vejle Sygehus","Skema 6.37: Udgifter til primær sundhed fra skema 2",null,null,null,null,0,""]
["Vejle Sygehus","Skema 6.38: Udgifter til primær sundhed fra skema 3",null,null,null,null,0,""]
["Vejle Sygehus","Skema 6.39: Særlige udgifter ifm. COVID-19",null,{"$f":"(4710+3323)/2","v":4016.5},1141.847,2909.2170000000001,-4016.5,"-100,0%▼"]
["Vejle Sygehus","Skema 6.40: Udleveret udstyr/tilbehør ifm. cochlear implantater",null,null,null,null,0,""]
["Vejle Sygehus","Skema 6.41: Luxturna-behandling, Rigshospitalet",null,null,null,null,0,""]
["Vejle Sygehus","Skema 6.42: Udleveret medicin",71482.539999999994,97465.865999999995,75169.380024492202,null,-25983.326000000001,"-26,7%▼"]
["Vejle Sygehus","Skema 6.43: Udgifter ifm. sundhedsklynger",null,null,null,null,0,""]
["Vejle Sygehus","Skema 6.44: Ukrainske patienter under særlov eller asyl",null,null,null,null,0,""]
["Vejle Sygehus","Skema 6.45: Udgifter ifm. de særlige pladser i psykiatrien",null,null,null,null,0,""]
["Vejle Sygehus","Skema 6.46: Sikringsafdelingen, Region Sjælland",null,null,null,null,0,""]
["Vejle Sygehus","Skema 6.47: Øvrige (Kan kun benyttes efter aftale med Sundhedsdatastyrelsen)",null,null,null,null,0,""]
["Vejle Sygehus","Lukkede poster (må kun bruges af Sundhedsdatastyrelsen)",null,null,null,null,0,""]
["Vejle Sygehus","I alt",{"$f":"SUMIFS((C7:C254),(A7:A254),A255)","v":78917.273191999993},{"$f":"SUMIFS((D7:D254),(A7:A254),A255)","v":166130.56211880385},{"$f":"SUMIFS((E7:E254),(A7:A254),A255)","v":140411.07610168558},{"$f":"SUMIFS((F7:F254),(A7:A254),A255)","v":61002.549937936099},-87213.288926803856,"-52,5%▼"]
["Friklinikken i Grindsted",null,null,null,null,null,0,""]
["Friklinikken i Grindsted","Skema 6.1: Center for voldsramte (Bispebjerg)",null,null,null,null,0,""]
["Friklinikken i Grindsted","Skema 6.2: Ventilatørbistand i hjemmet, respiratorpatienter",null,null,null,null,0,""]
["Friklinikken i Grindsted","Skema 6.3: Blodprøvetagning i eget hjem",null,null,null,null,0,""]
["Friklinikken i Grindsted","Skema 6.4: Psykinfo + pårørende",null,null,null,null,0,""]
["Friklinikken i Grindsted","Skema 6.5: Leveret udstyr til patienter i eget hjem, ilt og sonderemedier",null,null,null,null,0,""]
["Friklinikken i Grindsted","Skema 6.6: Montebello (Nordsjællands Hospitaler)",null,null,null,null,0,""]
["Friklinikken i Grindsted","Skema 6.7: Satspulje korrektioner mellem år",null,null,null,null,{"$f":"IF(ISERROR(C263- D263)=TRUE,\"\",C263 - D263)","v":0},{"$f":"IF(ISERROR((((C263- D263)/D263)*100)=TRUE),\"\",IF((((C263- D263)/D263)*100)<-7,FIXED(((C263- D263)/D263)*100, 1,TRUE) &\"%\" & \"▼\",IF((((C263- D263)/D263)*100)>7,FIXED(((C263- D263)/D263)*100, 1,TRUE) &\"%\" &\"▲\",FIXED(((C263- D263)/D263)*100, 1,TRUE)&\"%\")))","v":""}]
["Friklinikken i Grindsted","Skema 6.8: Klinisk farmakologisk rådgivning af praksissektoren",null,null,null,null,0,""]
["Friklinikken i Grindsted","Skema 6.9: Tandregulering ifm. operation",null,null,null,null,0,""]
["Friklinikken i Grindsted","Skema 6.10: Giftlinjen",null,null,null,null,0,""]
["Friklinikken i Grindsted","Skema 6.11: Tjenestemandspensioner",null,null,null,null,0,""]
["Friklinikken i Grindsted","Skema 6.12: Art 4.6 Betalinger til staten",null,null,null,null,0,""]
["Friklinikken i Grindsted","Skema 6.13: Art 4.7 Betalinger til kommuner",null,null,null,null,0,""]
["Friklinikken i Grindsted","Skema 6.14: Art 4.8 Betalinger til andre regioner",null,null,null,null,0,""]
["Friklinikken i Grindsted","Skema 6.15: Art 7.6 Betalinger fra staten",null,null,null,null,0,""]
["Friklinikken i Grindsted","Skema 6.16: Art 7.7 Betalinger fra kommuner",null,null,null,null,0,""]
["Friklinikken i Grindsted","Skema 6.17: Art 7.8 Betalinger fra andre regioner",null,null,null,null,0,""]
["Friklinikken i Grindsted","Skema 6.18: Betalinger til selvejende, private og udenlandske sygehuse",null,null,null,null,0,""]
["Friklinikken i Grindsted","Skema 6.19: Dækningsafgift/ejendomsskat",null,null,null,null,0,""]
["Friklinikken i Grindsted","Skema 6.20: Forsikringer/erstatninger",null,null,null,null,0,""]
["Friklinikken i Grindsted","Skema 6.21: Vederlagsfri Lab. –ydelser og andre ydelser til praksissektoren",null,null,null,null,0,""]
["Friklinikken i Grindsted","Skema 6.22: Patienttransport",null,null,null,null,0,""]
["Friklinikken i Grindsted","Skema 6.23: Serviceydelser til/fra andre institutioner eller sygehuse udenfor regionen",null,null,null,null,0,""]
["Friklinikken i Grindsted","Skema 6.24: Udgifter til eksternt finansierede forskning",null,null,null,null,0,""]
["Friklinikken i Grindsted","Skema 6.25: Forebyggelse rettet mod praksissektoren og kommuner",null,null,null,null,0,""]
["Friklinikken i Grindsted","Skema 6.26: Praksisreservelæger",null,null,null,null,0,""]
["Friklinikken i Grindsted","Skema 6.27: Præhospital",null,null,null,null,0,""]
["Friklinikken i Grindsted","Skema 6.28: Udgifter til Danske Regioner (Kontigent, MedCom, Fællesproj.)",null,null,null,null,0,""]
["Friklinikken i Grindsted","Skema 6.29: Hospice",null,null,null,null,0,""]
["Friklinikken i Grindsted","Skema 6.30: Konsulenter(Praksis)",null,null,null,null,0,""]
["Friklinikken i Grindsted","Skema 6.31: Videnskabsetisk Komité",null,null,null,null,0,""]
["Friklinikken i Grindsted","Skema 6.32: Tolkebistand",null,null,null,null,0,""]
["Friklinikken i Grindsted","Skema 6.33: Dansk Center for Partikelterapi",null,null,null,null,0,""]
["Friklinikken i Grindsted","Skema 6.34: Politisk organisation – overførte udgifter fra funktion 4.10.01, 4.10.02 og 4.10.04",null,null,null,null,0,""]
["Friklinikken i Grindsted","Skema 6.35: Øvrige udgifter, Region Sjælland",null,null,null,null,0,""]
["Friklinikken i Grindsted","Skema 6.36: Sundhedsydelser ifm. specialsektor",null,null,null,null,0,""]
["Friklinikken i Grindsted","Skema 6.37: Udgifter til primær sundhed fra skema 2",null,null,null,null,0,""]
["Friklinikken i Grindsted","Skema 6.38: Udgifter til primær sundhed fra skema 3",null,null,null,null,0,""]
["Friklinikken i Grindsted","Skema 6.39: Særlige udgifter ifm. COVID-19",null,null,null,null,0,""]
["Friklinikken i Grindsted","Skema 6.40: Udleveret udstyr/tilbehør ifm. cochlear implantater",null,null,null,null,0,""]
["Friklinikken i Grindsted","Skema 6.41: Luxturna-behandling, Rigshospitalet",null,null,null,null,0,""]
["Friklinikken i Grindsted","Skema 6.42: Udleveret medicin",null,null,null,null,0,""]
["Friklinikken i Grindsted","Skema 6.43: Udgifter ifm. sundhedsklynger",null,null,null,null,0,""]
["Friklinikken i Grindsted","Skema 6.44: Ukrainske patienter under særlov eller asyl",null,null,null,null,0,""]
["Friklinikken i Grindsted","Skema 6.45: Udgifter ifm. de særlige pladser i psykiatrien",null,null,null,null,0,""]
["Friklinikken i Grindsted","Skema 6.46: Sikringsafdelingen, Region Sjælland",null,null,null,null,0,""]
["Friklinikken i Grindsted","Skema 6.47: Øvrige (Kan kun benyttes efter aftale med Sundhedsdatastyrelsen)",null,null,null,null,0,""]
["Friklinikken i Grindsted","Lukkede poster (må kun bruges af Sundhedsdatastyrelsen)",null,null,null,null,0,""]
["Friklinikken i Grindsted","I alt",{"$f":"SUMIFS((C7:C304),(A7:A304),A305)","v":0},{"$f":"SUMIFS((D7:D304),(A7:A304),A305)","v":0},{"$f":"SUMIFS((E7:E304),(A7:A304),A305)","v":0},{"$f":"SUMIFS((F7:F304),(A7:A304),A305)","v":0},0,""]
["Øvrige i Region Syddanmark",null,null,null,null,null,0,""]
["Øvrige i Region Syddanmark","Skema 6.1: Center for voldsramte (Bispebjerg)",null,null,null,null,0,""]
["Øvrige i Region Syddanmark","Skema 6.2: Ventilatørbistand i hjemmet, respiratorpatienter",null,null,null,null,0,""]
["Øvrige i Region Syddanmark","Skema 6.3: Blodprøvetagning i eget hjem",null,null,null,null,0,""]
["Øvrige i Region Syddanmark","Skema 6.4: Psykinfo + pårørende",null,null,null,null,0,""]
["Øvrige i Region Syddanmark","Skema 6.5: Leveret udstyr til patienter i eget hjem, ilt og sonderemedier",null,null,null,null,0,""]
["Øvrige i Region Syddanmark","Skema 6.6: Montebello (Nordsjællands Hospitaler)",null,null,null,null,0,""]
["Øvrige i Region Syddanmark","Skema 6.7: Satspulje korrektioner mellem år",null,null,null,null,0,""]
["Øvrige i Region Syddanmark","Skema 6.8: Klinisk farmakologisk rådgivning af praksissektoren",null,null,null,null,0,""]
["Øvrige i Region Syddanmark","Skema 6.9: Tandregulering ifm. operation",null,null,null,null,0,""]
["Øvrige i Region Syddanmark","Skema 6.10: Giftlinjen",null,null,null,null,0,""]
["Øvrige i Region Syddanmark","Skema 6.11: Tjenestemandspensioner",null,null,null,null,0,""]
["Øvrige i Region Syddanmark","Skema 6.12: Art 4.6 Betalinger til staten",null,null,null,null,0,""]
["Øvrige i Region Syddanmark","Skema 6.13: Art 4.7 Betalinger til kommuner",null,null,null,null,0,""]
["Øvrige i Region Syddanmark","Skema 6.14: Art 4.8 Betalinger til andre regioner",null,null,null,null,0,""]
["Øvrige i Region Syddanmark","Skema 6.15: Art 7.6 Betalinger fra staten",null,null,null,null,0,""]
["Øvrige i Region Syddanmark","Skema 6.16: Art 7.7 Betalinger fra kommuner",null,null,null,null,0,""]
["Øvrige i Region Syddanmark","Skema 6.17: Art 7.8 Betalinger fra andre regioner",null,null,null,null,0,""]
["Øvrige i Region Syddanmark","Skema 6.18: Betalinger til selvejende, private og udenlandske sygehuse",null,null,null,null,0,""]
["Øvrige i Region Syddanmark","Skema 6.19: Dækningsafgift/ejendomsskat",null,null,null,null,0,""]
["Øvrige i Region Syddanmark","Skema 6.20: Forsikringer/erstatninger",null,null,null,null,0,""]
["Øvrige i Region Syddanmark","Skema 6.21: Vederlagsfri Lab. –ydelser og andre ydelser til praksissektoren",null,null,null,null,{"$f":"IF(ISERROR(C327- D327)=TRUE,\"\",C327 - D327)","v":0},{"$f":"IF(ISERROR((((C327- D327)/D327)*100)=TRUE),\"\",IF((((C327- D327)/D327)*100)<-7,FIXED(((C327- D327)/D327)*100, 1,TRUE) &\"%\" & \"▼\",IF((((C327- D327)/D327)*100)>7,FIXED(((C327- D327)/D327)*100, 1,TRUE) &\"%\" &\"▲\",FIXED(((C327- D327)/D327)*100, 1,TRUE)&\"%\")))","v":""}]
["Øvrige i Region Syddanmark","Skema 6.22: Patienttransport",null,null,null,null,0,""]
["Øvrige i Region Syddanmark","Skema 6.23: Serviceydelser til/fra andre institutioner eller sygehuse udenfor regionen",null,null,null,null,0,""]
["Øvrige i Region Syddanmark","Skema 6.24: Udgifter til eksternt finansierede forskning",null,null,null,null,0,""]
["Øvrige i Region Syddanmark","Skema 6.25: Forebyggelse rettet mod praksissektoren og kommuner",null,null,null,null,0,""]
["Øvrige i Region Syddanmark","Skema 6.26: Praksisreservelæger",null,null,null,null,0,""]
["Øvrige i Region Syddanmark","Skema 6.27: Præhospital",null,null,null,null,0,""]
["Øvrige i Region Syddanmark","Skema 6.28: Udgifter til Danske Regioner (Kontigent, MedCom, Fællesproj.)",null,null,null,null,0,""]
["Øvrige i Region Syddanmark","Skema 6.29: Hospice",null,null,null,null,0,""]
["Øvrige i Region Syddanmark","Skema 6.30: Konsulenter(Praksis)",null,null,null,null,0,""]
["Øvrige i Region Syddanmark","Skema 6.31: Videnskabsetisk Komité",null,null,null,null,0,""]
["Øvrige i Region Syddanmark","Skema 6.32: Tolkebistand",null,null,null,null,0,""]
["Øvrige i Region Syddanmark","Skema 6.33: Dansk Center for Partikelterapi",null,null,null,null,0,""]
["Øvrige i Region Syddanmark","Skema 6.34: Politisk organisation – overførte udgifter fra funktion 4.10.01, 4.10.02 og 4.10.04",null,null,null,null,0,""]
["Øvrige i Region Syddanmark","Skema 6.35: Øvrige udgifter, Region Sjælland",null,null,null,null,0,""]
["Øvrige i Region Syddanmark","Skema 6.36: Sundhedsydelser ifm. specialsektor",null,null,null,null,0,""]
["Øvrige i Region Syddanmark","Skema 6.37: Udgifter til primær sundhed fra skema 2",null,null,null,null,0,""]
["Øvrige i Region Syddanmark","Skema 6.38: Udgifter til primær sundhed fra skema 3",null,null,null,null,0,""]
["Øvrige i Region Syddanmark","Skema 6.39: Særlige udgifter ifm. COVID-19",null,null,null,null,0,""]
["Øvrige i Region Syddanmark","Skema 6.40: Udleveret udstyr/tilbehør ifm. cochlear implantater",null,null,null,null,0,""]
["Øvrige i Region Syddanmark","Skema 6.41: Luxturna-behandling, Rigshospitalet",null,null,null,null,0,""]
["Øvrige i Region Syddanmark","Skema 6.42: Udleveret medicin",null,null,null,null,0,""]
["Øvrige i Region Syddanmark","Skema 6.43: Udgifter ifm. sundhedsklynger",null,null,null,null,0,""]
["Øvrige i Region Syddanmark","Skema 6.44: Ukrainske patienter under særlov eller asyl",null,null,null,null,0,""]
["Øvrige i Region Syddanmark","Skema 6.45: Udgifter ifm. de særlige pladser i psykiatrien",null,null,null,null,0,""]
["Øvrige i Region Syddanmark","Skema 6.46: Sikringsafdelingen, Region Sjælland",null,null,null,null,0,""]
["Øvrige i Region Syddanmark","Skema 6.47: Øvrige (Kan kun benyttes efter aftale med Sundhedsdatastyrelsen)",null,null,null,null,0,""]
["Øvrige i Region Syddanmark","Lukkede poster (må kun bruges af Sundhedsdatastyrelsen)",null,null,null,null,0,""]
["Øvrige i Region Syddanmark","I alt",{"$f":"SUMIFS((C7:C354),(A7:A354),A355)","v":0},{"$f":"SUMIFS((D7:D354),(A7:A354),A355)","v":0},{"$f":"SUMIFS((E7:E354),(A7:A354),A355)","v":0},{"$f":"SUMIFS((F7:F354),(A7:A354),A355)","v":0},0,""]
["Ikke fordelte udgifter og indtægter",null,null,null,null,null,0,""]
["Ikke fordelte udgifter og indtægter","Skema 6.1: Center for voldsramte (Bispebjerg)",null,null,null,null,0,""]
["Ikke fordelte udgifter og indtægter","Skema 6.2: Ventilatørbistand i hjemmet, respiratorpatienter",229692,251611,253252,265922,-21919,"-8,7%▼"]
["Ikke fordelte udgifter og indtægter","Skema 6.3: Blodprøvetagning i eget hjem",null,null,null,null,0,""]
["Ikke fordelte udgifter og indtægter","Skema 6.4: Psykinfo + pårørende",null,null,null,null,0,""]
["Ikke fordelte udgifter og indtægter","Skema 6.5: Leveret udstyr til patienter i eget hjem, ilt og sonderemedier",null,null,null,null,0,""]
["Ikke fordelte udgifter og indtægter","Skema 6.6: Montebello (Nordsjællands Hospitaler)",null,null,null,null,0,""]
["Ikke fordelte udgifter og indtægter","Skema 6.7: Satspulje korrektioner mellem år",null,null,null,null,0,""]
["Ikke fordelte udgifter og indtægter","Skema 6.8: Klinisk farmakologisk rådgivning af praksissektoren",null,null,null,null,0,""]
["Ikke fordelte udgifter og indtægter","Skema 6.9: Tandregulering ifm. operation",null,null,null,null,0,""]
["Ikke fordelte udgifter og indtægter","Skema 6.10: Giftlinjen",null,null,null,null,0,""]
["Ikke fordelte udgifter og indtægter","Skema 6.11: Tjenestemandspensioner",266948,575191,479401,330146,-308243,"-53,6%▼"]
["Ikke fordelte udgifter og indtægter","Skema 6.12: Art 4.6 Betalinger til staten",null,null,null,null,0,""]
["Ikke fordelte udgifter og indtægter","Skema 6.13: Art 4.7 Betalinger til kommuner",3832,3788,3847,8023,44,"1,2%"]
["Ikke fordelte udgifter og indtægter","Skema 6.14: Art 4.8 Betalinger til andre regioner",309222,175246,{"$f":"264164-2768","v":261396},183100,133976,"76,5%▲"]
["Ikke fordelte udgifter og indtægter","Skema 6.15: Art 7.6 Betalinger fra staten",230,0,-1920,49,230,""]
["Ikke fordelte udgifter og indtægter","Skema 6.16: Art 7.7 Betalinger fra kommuner",-21631,-21099,-29423,-18829,-532,"2,5%"]
["Ikke fordelte udgifter og indtægter","Skema 6.17: Art 7.8 Betalinger fra andre regioner",-251,-6026,-6150,-13565,5775,"-95,8%▼"]
["Ikke fordelte udgifter og indtægter","Skema 6.18: Betalinger til selvejende, private og udenlandske sygehuse",346502,152282,126349,133177,194220,"127,5%▲"]
["Ikke fordelte udgifter og indtægter","Skema 6.19: Dækningsafgift/ejendomsskat",459,1140,900,720,-681,"-59,7%▼"]
["Ikke fordelte udgifter og indtægter","Skema 6.20: Forsikringer/erstatninger",270734,273724,253586,263305,-2990,"-1,1%"]
["Ikke fordelte udgifter og indtægter","Skema 6.21: Vederlagsfri Lab. –ydelser og andre ydelser til praksissektoren",null,null,null,null,0,""]
["Ikke fordelte udgifter og indtægter","Skema 6.22: Patienttransport",899015,863094,826203,822755,35921,"4,2%"]
["Ikke fordelte udgifter og indtægter","Skema 6.23: Serviceydelser til/fra andre institutioner eller sygehuse udenfor regionen",null,null,null,null,0,""]
["Ikke fordelte udgifter og indtægter","Skema 6.24: Udgifter til eksternt finansierede forskning",null,null,null,null,0,""]
["Ikke fordelte udgifter og indtægter","Skema 6.25: Forebyggelse rettet mod praksissektoren og kommuner",null,null,null,null,0,""]
["Ikke fordelte udgifter og indtægter","Skema 6.26: Praksisreservelæger",67990,67368,66502,63365,622,"0,9%"]
["Ikke fordelte udgifter og indtægter","Skema 6.27: Præhospital",50951,49336,47137,45848,1615,"3,3%"]
["Ikke fordelte udgifter og indtægter","Skema 6.28: Udgifter til Danske Regioner (Kontigent, MedCom, Fællesproj.)",64422,61136,62360,58930,3286,"5,4%"]
["Ikke fordelte udgifter og indtægter","Skema 6.29: Hospice",101467,95443,93338,93237,6024,"6,3%"]
["Ikke fordelte udgifter og indtægter","Skema 6.30: Konsulenter(Praksis)",null,null,null,null,0,""]
["Ikke fordelte udgifter og indtægter","Skema 6.31: Videnskabsetisk Komité",2652,2569,2274,2240,83,"3,2%"]
["Ikke fordelte udgifter og indtægter","Skema 6.32: Tolkebistand",24360,22548,11099,15577,1812,"8,0%▲"]
["Ikke fordelte udgifter og indtægter","Skema 6.33: Dansk Center for Partikelterapi",null,null,null,null,0,""]
["Ikke fordelte udgifter og indtægter","Skema 6.34: Politisk organisation – overførte udgifter fra funktion 4.10.01, 4.10.02 og 4.10.04",15249,15105,14956,14064,144,"1,0%"]
["Ikke fordelte udgifter og indtægter","Skema 6.35: Øvrige udgifter, Region Sjælland",null,null,null,null,{"$f":"IF(ISERROR(C391- D391)=TRUE,\"\",C391 - D391)","v":0},{"$f":"IF(ISERROR((((C391- D391)/D391)*100)=TRUE),\"\",IF((((C391- D391)/D391)*100)<-7,FIXED(((C391- D391)/D391)*100, 1,TRUE) &\"%\" & \"▼\",IF((((C391- D391)/D391)*100)>7,FIXED(((C391- D391)/D391)*100, 1,TRUE) &\"%\" &\"▲\",FIXED(((C391- D391)/D391)*100, 1,TRUE)&\"%\")))","v":""}]
["Ikke fordelte udgifter og indtægter","Skema 6.36: Sundhedsydelser ifm. specialsektor",null,null,null,null,0,""]
["Ikke fordelte udgifter og indtægter","Skema 6.37: Udgifter til primær sundhed fra skema 2",null,null,null,null,0,""]
["Ikke fordelte udgifter og indtægter","Skema 6.38: Udgifter til primær sundhed fra skema 3",null,null,null,101991,0,""]
["Ikke fordelte udgifter og indtægter","Skema 6.39: Særlige udgifter ifm. COVID-19",-209,423084,572602,619559,-423293,"-100,0%▼"]
["Ikke fordelte udgifter og indtægter","Skema 6.40: Udleveret udstyr/tilbehør ifm. cochlear implantater",null,null,null,null,0,""]
["Ikke fordelte udgifter og indtægter","Skema 6.41: Luxturna-behandling, Rigshospitalet",null,null,null,null,0,""]
["Ikke fordelte udgifter og indtægter","Skema 6.42: Udleveret medicin",null,null,null,null,0,""]
["Ikke fordelte udgifter og indtægter","Skema 6.43: Udgifter ifm. sundhedsklynger",null,null,null,null,0,""]
["Ikke fordelte udgifter og indtægter","Skema 6.44: Ukrainske patienter under særlov eller asyl",null,null,null,null,0,""]
["Ikke fordelte udgifter og indtægter","Skema 6.45: Udgifter ifm. de særlige pladser i psykiatrien",null,null,null,null,0,""]
["Ikke fordelte udgifter og indtægter","Skema 6.46: Sikringsafdelingen, Region Sjælland",null,null,null,null,0,""]
["Ikke fordelte udgifter og indtægter","Skema 6.47: Øvrige (Kan kun benyttes efter aftale med Sundhedsdatastyrelsen)",null,null,null,null,0,""]
["Ikke fordelte udgifter og indtægter","Lukkede poster (må kun bruges af Sundhedsdatastyrelsen)",null,null,null,null,0,""]
["Ikke fordelte udgifter og indtægter","I alt",{"$f":"SUMIFS((C7:C404),(A7:A404),A405)","v":2631634},{"$f":"SUMIFS((D7:D404),(A7:A404),A405)","v":3005540},{"$f":"SUMIFS((E7:E404),(A7:A404),A405)","v":3037709},{"$f":"SUMIFS((F7:F404),(A7:A404),A405)","v":2989614},-373906,"-12,4%▼"]

{"sheet":"Skema 7","index":6,"n_rows":17,"n_cols":13,"rows_kept":17,"cut":false,"hidden":false,"merged":[[4,1,4,2],[1,1,2,8],[4,4,4,5],[4,7,4,8],[4,10,4,11]]}
["Region Syddanmark, somatiske sygehuse."]
[null,"Skema 7: Vederlagsfrie ydelser mellem sygehusene. (1.000 kr.)"]
[]
[]
["Sygehus",2023,null,2023,2022,null,2022,2021,null,2021,2020,null,2020]
[null,"Leverede","Modtagne","Lev. - Mod.","Leverede","Modtagne","Lev. - Mod.","Leverede","Modtagne","Lev. - Mod.","Leverede","Modtagne","Lev. - Mod."]
["Odense Universitetshospital/Svendborg",14491,4036,{"$f":"$B$7-$C$7","v":10455},{"$f":"8041+7108","v":15149},{"$f":"1850+2514","v":4364},{"$f":"$E$7-$F$7","v":10785},15027,4428,{"$f":"$H$7-$I$7","v":10599},14513,4123,{"$f":"$K$7-$L$7","v":10390}]
["Sygehus Sønderjylland",3622,5,{"$f":"$B$8-$C$8","v":3617},{"$f":"2514+405+509","v":3428},15,{"$f":"$E$8-$F$8","v":3413},3458,43,{"$f":"$H$8-$I$8","v":3415},3195,42,{"$f":"$K$8-$L$8","v":3153}]
["Esbjerg og Grindsted Sygehus",4802,null,{"$f":"$B$9-$C$9","v":4802},4613,0,{"$f":"$E$9-$F$9","v":4613},4644,null,{"$f":"$H$9-$I$9","v":4644},4607,null,{"$f":"$K$9-$L$9","v":4607}]
["Kolding og Middelfart Sygehuse",null,null,{"$f":"$B$10-$C$10","v":0},null,null,{"$f":"$E$10-$F$10","v":0},null,null,{"$f":"$H$10-$I$10","v":0},null,6200,{"$f":"$K$10-$L$10","v":-6200}]
["Vejle Sygehus",5146,7035,{"$f":"$B$11-$C$11","v":-1889},{"$f":"3783+1797","v":5580},{"$f":"7108+405+27","v":7540},{"$f":"$E$11-$F$11","v":-1960},5581,7556,{"$f":"$H$11-$I$11","v":-1975},11688,7197,{"$f":"$K$11-$L$11","v":4491}]
["Friklinikken i Grindsted",null,null,{"$f":"$B$12-$C$12","v":0},null,null,{"$f":"$E$12-$F$12","v":0},null,null,{"$f":"$H$12-$I$12","v":0},null,null,{"$f":"$K$12-$L$12","v":0}]
["Øvrige i Region Syddanmark",null,null,{"$f":"$B$13-$C$13","v":0},null,null,{"$f":"$E$13-$F$13","v":0},null,null,{"$f":"$H$13-$I$13","v":0},null,null,{"$f":"$K$13-$L$13","v":0}]
["Ikke fordelte udgifter Region Syddanmark, somatik",null,null,{"$f":"$B$14-$C$14","v":0},null,null,{"$f":"$E$14-$F$14","v":0},null,null,{"$f":"$H$14-$I$14","v":0},null,null,{"$f":"$K$14-$L$14","v":0}]
["I alt",{"$f":"SUM(B7:B14)","v":28061},{"$f":"SUM(C7:C14)","v":11076},{"$f":"SUM(D7:D14)","v":16985},{"$f":"SUM(E7:E14)","v":28770},11919,16851,28710,12027,16683,{"$f":"SUM(K7:K14)","v":34003},17562,16441]
[]
["NB: Afstem med psykiatrien",null,null,null,{"$f":"E15-F15","v":16851}]

{"sheet":"Rapport","index":7,"n_rows":99,"n_cols":6,"rows_kept":99,"cut":false,"hidden":false,"merged":[]}
[]
[null,"Skema 1: Udgifter og indtægter på sygehusene/enhederne, eksklusiv omkostningssted 0001, Fælleskonto. (1.000 kr.)"]
[null,null,2023,2022,2021,2020]
[null,"Hovedart 1: Lønninger",11413573.083000001,11315727.377577286,10933527.723474119,10317685.11184676]
[null,"Hovedart 2: Varekøb",4286318.0920000002,4373098.0611363053,4236129.3088278472,4380847.472077677]
[null,"Hovedart 4: Tjenesteydelser m.v. ",1477437.7619999999,1005374.6816745942,634743.45493075554,958513.27687180054]
[null,"Hovedart 5: Tilskud og overførsler",-81452.481,1,0,0]
[null,"Hovedart 6: Finansudgifter",0,0,0,0]
[null,"Hovedart 7: Indtægter",-667934.85499999998,-703830.95962247986,-690372.12931300839,-660385.90041999996]
[null,"Hovedart 8: Finansindtægter",0,-686.32484291843582,-1502.0233899999998,-2683.1027299999996]
[null,"Hovedart 9: Interne udgifter og indtægter",0,0,0,0]
[null,"I alt",16427941.601,15989683.835922789,15112526.334529711,14993976.857646238]
[]
[null,"Skema 2: Fællesudgifter og -indtægter vedrørende sygehusene.\n(1.000 kr.)"]
[null,null,2023,2022,2021,2020]
[null,"Hovedart 1: Lønninger",594850,708712,659607,627653]
[null,"Hovedart 2: Varekøb",159379,279379,171141,339505]
[null,"Hovedart 4: Tjenesteydelser m.v. ",3198554,3915329,3898075,3382908]
[null,"Hovedart 5: Tilskud og overførsler",15713,13445,15967,15972]
[null,"Hovedart 6: Finansudgifter",0,0,0,0]
[null,"Hovedart 7: Indtægter",-772305,-870134,-719327,-817621]
[null,"Hovedart 8: Finansindtægter",-94101,-523502,-444120,-46600]
[null,"Hovedart 9: Interne udgifter og indtægter",0,0,0,0]
[null,"I alt",3102090,3523229,3581343,3501817]
[]
[null,"Skema 3:Regionale fællesudgifter og -indtægter. (1.000 kr.)"]
[null,null,2023,2022,2021,2020]
[null,"1.70.50: Andel af fællesudgifter",429108,433187,411797,468435]
[null,"1.60.40: Andel af central administration af sundhed (til og med 2019)",0,0,0,0]
[null,"1.60.41: Andel af øvrige udgifter og indtægter",26973,33929,33565,80462]
[null,"1.50.33: Andel af central administration af sundhed (ekskl. psykiatri)",79366,76112,70722,65021]
[null,"1.50.35: Administration af det psykiatriske område (kun central del)",0,0,0,21633]
[null,"I alt",535447,543228,516084,635551]
[]
[null,"Skema 4: Udgifter og indtægter til og fra psykiatriske afdelinger konteret på somatiske sygehuse. (1.000 kr.)"]
[null,null,2023,2022,2021,2020]
[null,"Korrektion",0,0,0,0]
[null,"Lønudg. på psyk. afd.,somatiske sygehuse",0,0,0,0]
[null,"Øvrige udg. til psyk. afd.,somatiske sygehuse",0,0,0,0]
[null,"I alt",0,0,0,0]
[]
[null,"Skema 5: Leasing- og huslejeudgifter. (1.000 kr.)"]
[null,null,2023,2022,2021,2020]
[null,"Andre udgifter",0,0,0,0]
[null,"Leasing- og lejeudgifter",276842,307808.77041,296229.14752,414364.89500000002]
[null,"Huslejeudgifter",16687,24703.140820000001,21298.698039999999,19759.521000000001]
[null,"I alt",293529,332511.91122999997,317527.84555999999,434124.41600000003]
[]
[null,"Skema 6: Udgifter til andet end patientbehandling. (1.000 kr.)"]
[null,null,2023,2022,2021,2020]
[null,"Skema 6.1: Center for voldsramte (Bispebjerg)",0,0,0,0]
[null,"Skema 6.2: Ventilatørbistand i hjemmet, respiratorpatienter",234550.67300000001,256634.954,258811.61499999999,270115]
[null,"Skema 6.3: Blodprøvetagning i eget hjem",4720.3005219999995,4720.3000480000001,4046.632023197747,4019.8542245909903]
[null,"Skema 6.4: Psykinfo + pårørende",0,0,0,0]
[null,"Skema 6.5: Leveret udstyr til patienter i eget hjem, ilt og sonderemedier",41730.289000000004,31055.949259999998,30884.292229999999,28168.096669999999]
[null,"Skema 6.6: Montebello (Nordsjællands Hospitaler)",0,0,0,0]
[null,"Skema 6.7: Satspulje korrektioner mellem år",0,0,0,0]
[null,"Skema 6.8: Klinisk farmakologisk rådgivning af praksissektoren",3600.3690000000001,3488.2240000000002,2954.7280000000001,2463]
[null,"Skema 6.9: Tandregulering ifm. operation",0,0,0,0]
[null,"Skema 6.10: Giftlinjen",0,0,0,0]
[null,"Skema 6.11: Tjenestemandspensioner",266948,575191,479401,330146]
[null,"Skema 6.12: Art 4.6 Betalinger til staten",0,0,0,0]
[null,"Skema 6.13: Art 4.7 Betalinger til kommuner",3832,3788,3847,8023]
[null,"Skema 6.14: Art 4.8 Betalinger til andre regioner",317339.33974999998,184269.50951403609,268063.49099999998,189445.53103011069]
[null,"Skema 6.15: Art 7.6 Betalinger fra staten",230,0,-1920,49]
[null,"Skema 6.16: Art 7.7 Betalinger fra kommuner",-21631,-21099,-29423,-18829]
[null,"Skema 6.17: Art 7.8 Betalinger fra andre regioner",-251,-6026,-6150,-13565]
[null,"Skema 6.18: Betalinger til selvejende, private og udenlandske sygehuse",346502,152282,126349,133177]
[null,"Skema 6.19: Dækningsafgift/ejendomsskat",25829.347999999998,37096.44945,36351.003199999999,35680.276729999998]
[null,"Skema 6.20: Forsikringer/erstatninger",295656.74300000002,308842.35837000003,286701.79726000002,294323.97950000002]
[null,"Skema 6.21: Vederlagsfri Lab. –ydelser og andre ydelser til praksissektoren",282375.14899999998,344645.95699999999,335176.33199999999,310697.68290999997]
[null,"Skema 6.22: Patienttransport",900073.13300000003,865900.89661000005,828592.50019000005,824630.21663000004]
[null,"Skema 6.23: Serviceydelser til/fra andre institutioner eller sygehuse udenfor regionen",0,0,1782.3402525993642,1770.5459634079523]
[null,"Skema 6.24: Udgifter til eksternt finansierede forskning",79713.092000000004,80991.672000000006,68231.315000000002,58132]
[null,"Skema 6.25: Forebyggelse rettet mod praksissektoren og kommuner",0,0,0,0]
[null,"Skema 6.26: Praksisreservelæger",67990,67368,66502,63365]
[null,"Skema 6.27: Præhospital",82102.562000000005,82625.422878879996,82223.73083,80819.16]
[null,"Skema 6.28: Udgifter til Danske Regioner (Kontigent, MedCom, Fællesproj.)",64422,61136,62360,58930]
[null,"Skema 6.29: Hospice",101656,95559,93476,93360]
[null,"Skema 6.30: Konsulenter(Praksis)",2284.94,2236.3429999999998,2616.9670000000001,4218.9258300000001]
[null,"Skema 6.31: Videnskabsetisk Komité",2652,2569,2274,2240]
[null,"Skema 6.32: Tolkebistand",26046.498,25016.415010000001,13815.51261,18409.69427]
[null,"Skema 6.33: Dansk Center for Partikelterapi",0,0,0,0]
[null,"Skema 6.34: Politisk organisation – overførte udgifter fra funktion 4.10.01, 4.10.02 og 4.10.04",15249,15105,14956,14064]
[null,"Skema 6.35: Øvrige udgifter, Region Sjælland",0,0,0,0]
[null,"Skema 6.36: Sundhedsydelser ifm. specialsektor",0,0,0,0]
[null,"Skema 6.37: Udgifter til primær sundhed fra skema 2",0,0,0,0]
[null,"Skema 6.38: Udgifter til primær sundhed fra skema 3",0,0,0,101991]
[null,"Skema 6.39: Særlige udgifter ifm. COVID-19",12508,466931.91499999998,596276.42500000005,631930]
[null,"Skema 6.40: Udleveret udstyr/tilbehør ifm. cochlear implantater",3108.4380000000001,2933.8150000000001,2904.3620000000001,0]
[null,"Skema 6.41: Luxturna-behandling, Rigshospitalet",0,0,0,0]
[null,"Skema 6.42: Udleveret medicin",424921.50699999993,440413.82,489216.6320244922,0]
[null,"Skema 6.43: Udgifter ifm. sundhedsklynger",6187,0,0,0]
[null,"Skema 6.44: Ukrainske patienter under særlov eller asyl",0,0,0,0]
[null,"Skema 6.45: Udgifter ifm. de særlige pladser i psykiatrien",0,0,0,0]
[null,"Skema 6.46: Sikringsafdelingen, Region Sjælland",0,0,0,0]
[null,"Skema 6.47: Øvrige (Kan kun benyttes efter aftale med Sundhedsdatastyrelsen)",-21474.269,-30094.999,0,0]
[null,"Lukkede poster (må kun bruges af Sundhedsdatastyrelsen)",0,0,0,0]
[null,"I alt",3568872.1122719999,4053582.002140916,4120321.6756202895,3527774.9637581096]

{"sheet":"Rapport SGH","index":8,"n_rows":19,"n_cols":9,"rows_kept":19,"cut":false,"hidden":false,"merged":[]}
[2023,"Skema 1","Skema 2","Skema 3","Skema 4","Skema 5","Skema 6","Skema 7","I alt"]
["Odense Universitetshospital/Svendborg",8093469.7599999998,182344,189994,0,16795,503971.99900000007,10455,{"$f":"SUM(B2:D2)-SUM(E2:H2)","v":7934585.7609999999}]
["Sygehus Sønderjylland",2271393,47062,49036,0,6137,149490,3617,{"$f":"SUM(B3:D3)-SUM(E3:H3)","v":2208247}]
["Esbjerg og Grindsted Sygehus",2167531,46830,48796,0,2235,175301,4802,2080819]
["Kolding og Middelfart Sygehuse",1760474.4180000001,35117,36591,0,949,29557.840080000002,0,1801675.5779200001]
["Vejle Sygehus",2068174.4230000002,49988,50118,0,1243,78917.273191999993,-1889,2090009.1498080003]
["Friklinikken i Grindsted",66899,1889,1968,0,0,0,0,70756]
["Øvrige i Region Syddanmark",0,0,0,0,0,0,0,0]
["Ikke fordelte udgifter og indtægter",0,2738860,158944,0,266170,2631634,0,0]
[]
[2022]
["Odense Universitetshospital/Svendborg",7909282.1030000001,197920,186270,0,14897,493516.78499999997,10785,{"$f":"SUM(B12:D12)-SUM(E12:H12)","v":7774273.318}]
["Sygehus Sønderjylland",2170652,51847,48795,0,7476,154517,3413,2105888]
["Esbjerg og Grindsted Sygehus",2100521,50471,47500,0,2257,147111,4613,2044511]
["Kolding og Middelfart Sygehuse",1745280.9815607173,38140,35896,0,7026.5426245769522,86766.655022112231,0,1725523.7839140282]
["Vejle Sygehus",2000032.7513620695,52240,49165,0,2070.368605423047,166130.56211880385,-1960,1935196.8206378426]
["Friklinikken i Grindsted",63915,2004,1885,0,0,0,0,67804]
["Øvrige i Region Syddanmark",0,0,0,0,0,0,0,0]
["Ikke fordelte udgifter og indtægter",0,3130607,173717,0,298785,3005540,0,-1]

{"sheet":"Afstemning af ikke fordelte","index":9,"n_rows":9,"n_cols":2,"rows_kept":9,"cut":false,"hidden":false,"merged":[]}
["Afstemning af Ikke fordelte indtægter- og udgifter"]
["1.000 kr.","2023"]
["Skema 1",0]
["Skema 2",2738860]
["Skema 3",158944]
["Skema 4",0]
["Skema 5",266170]
["Skema 6",2631634]
["1+2+3-4-5-6",{"$f":"+B3+B4+B5-B6-B7-B8","v":0}]

{"sheet":"Afstemning øvrige region","index":10,"n_rows":9,"n_cols":2,"rows_kept":9,"cut":false,"hidden":false,"merged":[]}
["Afstemning af Øvrige i Region Syddanmark"]
["1.000 kr.","2023"]
["Skema 1",0]
["Skema 2",0]
["Skema 3",0]
["Skema 4",0]
["Skema 5",0]
["Skema 6",0]
["1+2+3-4-5-6",{"$f":"+B3+B4+B5-B6-B7-B8","v":0}]